Department Family,Entity,Date,Expense Type,Expense Area,Supplier,Transaction Number,Amount,Description,Expenditure Type
HM Land Registry,HM Land Registry,05/07/2021,Employment Agency Staff Costs,Transformation Change Activities,Alexander Mann Solutions Limited,6008471,430.10,Employment Agency Staff Costs,Programme
HM Land Registry,HM Land Registry,05/07/2021,Employment Agency Staff Costs,Transformation Change Activities,Alexander Mann Solutions Limited,6008471,86.02,Employment Agency Staff Costs,Programme
HM Land Registry,HM Land Registry,05/07/2021,Employment Agency Staff Costs,DDaT Change Activities,Alexander Mann Solutions Limited,6008471,"3,675.35",Employment Agency Staff Costs,Programme
HM Land Registry,HM Land Registry,05/07/2021,Employment Agency Staff Costs,DDaT Change Activities,Alexander Mann Solutions Limited,6008471,735.07,Employment Agency Staff Costs,Programme
HM Land Registry,HM Land Registry,05/07/2021,Employment Agency Staff Costs,DDaT Change Activities,Alexander Mann Solutions Limited,6008471,"2,520.24",Employment Agency Staff Costs,Programme
HM Land Registry,HM Land Registry,05/07/2021,Employment Agency Staff Costs,DDaT Change Activities,Alexander Mann Solutions Limited,6008471,504.05,Employment Agency Staff Costs,Programme
HM Land Registry,HM Land Registry,05/07/2021,Employment Agency Staff Costs,Office of DDaT,Alexander Mann Solutions Limited,6008471,608.63,Employment Agency Staff Costs,Programme
HM Land Registry,HM Land Registry,05/07/2021,Employment Agency Staff Costs,Office of DDaT,Alexander Mann Solutions Limited,6008471,121.73,Employment Agency Staff Costs,Programme
HM Land Registry,HM Land Registry,05/07/2021,Employment Agency Staff Costs,DDaT Change Activities,Alexander Mann Solutions Limited,6008471,"2,992.75",Employment Agency Staff Costs,Programme
HM Land Registry,HM Land Registry,05/07/2021,Employment Agency Staff Costs,DDaT Change Activities,Alexander Mann Solutions Limited,6008471,598.55,Employment Agency Staff Costs,Programme
HM Land Registry,HM Land Registry,05/07/2021,Employment Agency Staff Costs,Operations Change Activities,Alexander Mann Solutions Limited,6008471,420.04,Employment Agency Staff Costs,Programme
HM Land Registry,HM Land Registry,05/07/2021,Employment Agency Staff Costs,Operations Change Activities,Alexander Mann Solutions Limited,6008471,"2,100.20",Employment Agency Staff Costs,Programme
HM Land Registry,HM Land Registry,05/07/2021,Employment Agency Staff Costs,Operations Change Activities,Alexander Mann Solutions Limited,6008471,"2,887.75",Employment Agency Staff Costs,Programme
HM Land Registry,HM Land Registry,05/07/2021,Employment Agency Staff Costs,Operations Change Activities,Alexander Mann Solutions Limited,6008471,577.55,Employment Agency Staff Costs,Programme
HM Land Registry,HM Land Registry,05/07/2021,Employment Agency Staff Costs,DDaT Change Activities,Alexander Mann Solutions Limited,6008471,"3,150.30",Employment Agency Staff Costs,Programme
HM Land Registry,HM Land Registry,05/07/2021,Employment Agency Staff Costs,DDaT Change Activities,Alexander Mann Solutions Limited,6008471,630.06,Employment Agency Staff Costs,Programme
HM Land Registry,HM Land Registry,05/07/2021,Employment Agency Staff Costs,Operations Change Activities,Alexander Mann Solutions Limited,6008471,"2,100.20",Employment Agency Staff Costs,Programme
HM Land Registry,HM Land Registry,05/07/2021,Employment Agency Staff Costs,Operations Change Activities,Alexander Mann Solutions Limited,6008471,420.04,Employment Agency Staff Costs,Programme
HM Land Registry,HM Land Registry,05/07/2021,Employment Agency Staff Costs,Operations Change Activities,Alexander Mann Solutions Limited,6008471,"2,078.75",Employment Agency Staff Costs,Programme
HM Land Registry,HM Land Registry,05/07/2021,Employment Agency Staff Costs,Operations Change Activities,Alexander Mann Solutions Limited,6008471,415.75,Employment Agency Staff Costs,Programme
HM Land Registry,HM Land Registry,05/07/2021,Employment Agency Staff Costs,Operations Change Activities,Alexander Mann Solutions Limited,6008471,"2,669.05",Employment Agency Staff Costs,Programme
HM Land Registry,HM Land Registry,05/07/2021,Employment Agency Staff Costs,Operations Change Activities,Alexander Mann Solutions Limited,6008471,533.81,Employment Agency Staff Costs,Programme
HM Land Registry,HM Land Registry,05/07/2021,Employment Agency Staff Costs,Operations Change Activities,Alexander Mann Solutions Limited,6008471,"2,840.60",Employment Agency Staff Costs,Programme
HM Land Registry,HM Land Registry,05/07/2021,Employment Agency Staff Costs,Operations Change Activities,Alexander Mann Solutions Limited,6008471,568.12,Employment Agency Staff Costs,Programme
HM Land Registry,HM Land Registry,05/07/2021,Employment Agency Staff Costs,Transformation Change Activities,Alexander Mann Solutions Limited,6008471,499.07,Employment Agency Staff Costs,Programme
HM Land Registry,HM Land Registry,05/07/2021,Employment Agency Staff Costs,Transformation Change Activities,Alexander Mann Solutions Limited,6008471,99.81,Employment Agency Staff Costs,Programme
HM Land Registry,HM Land Registry,05/07/2021,Employment Agency Staff Costs,Transformation Change Activities,Alexander Mann Solutions Limited,6008471,"2,362.70",Employment Agency Staff Costs,Programme
HM Land Registry,HM Land Registry,05/07/2021,Employment Agency Staff Costs,Transformation Change Activities,Alexander Mann Solutions Limited,6008471,472.54,Employment Agency Staff Costs,Programme
HM Land Registry,HM Land Registry,05/07/2021,Employment Agency Staff Costs,DDaT Change Activities,Alexander Mann Solutions Limited,6008471,"4,609.10",Employment Agency Staff Costs,Programme
HM Land Registry,HM Land Registry,05/07/2021,Employment Agency Staff Costs,DDaT Change Activities,Alexander Mann Solutions Limited,6008471,921.82,Employment Agency Staff Costs,Programme
HM Land Registry,HM Land Registry,05/07/2021,Employment Agency Staff Costs,DDaT Change Activities,Alexander Mann Solutions Limited,6008471,"3,677.05",Employment Agency Staff Costs,Programme
HM Land Registry,HM Land Registry,05/07/2021,Employment Agency Staff Costs,DDaT Change Activities,Alexander Mann Solutions Limited,6008471,735.41,Employment Agency Staff Costs,Programme
HM Land Registry,HM Land Registry,05/07/2021,Employment Agency Staff Costs,DDaT Change Activities,Alexander Mann Solutions Limited,6008471,"2,887.75",Employment Agency Staff Costs,Programme
HM Land Registry,HM Land Registry,05/07/2021,Employment Agency Staff Costs,DDaT Change Activities,Alexander Mann Solutions Limited,6008471,577.55,Employment Agency Staff Costs,Programme
HM Land Registry,HM Land Registry,05/07/2021,Employment Agency Staff Costs,DDaT Change Activities,Alexander Mann Solutions Limited,6008471,"2,694.70",Employment Agency Staff Costs,Programme
HM Land Registry,HM Land Registry,05/07/2021,Employment Agency Staff Costs,DDaT Change Activities,Alexander Mann Solutions Limited,6008471,538.94,Employment Agency Staff Costs,Programme
HM Land Registry,HM Land Registry,05/07/2021,Employment Agency Staff Costs,Finance,Alexander Mann Solutions Limited,6008471,"1,942.70",Employment Agency Staff Costs,Programme
HM Land Registry,HM Land Registry,05/07/2021,Employment Agency Staff Costs,Finance,Alexander Mann Solutions Limited,6008471,388.54,Employment Agency Staff Costs,Programme
HM Land Registry,HM Land Registry,07/07/2021,Employment Agency Staff Costs,Transformation Change Activities,Alexander Mann Solutions Limited,6008488,559.94,Employment Agency Staff Costs,Programme
HM Land Registry,HM Land Registry,07/07/2021,Employment Agency Staff Costs,Transformation Change Activities,Alexander Mann Solutions Limited,6008488,111.99,Employment Agency Staff Costs,Programme
HM Land Registry,HM Land Registry,07/07/2021,Employment Agency Staff Costs,Transformation Change Activities,Alexander Mann Solutions Limited,6008488,608.63,Employment Agency Staff Costs,Programme
HM Land Registry,HM Land Registry,07/07/2021,Employment Agency Staff Costs,Transformation Change Activities,Alexander Mann Solutions Limited,6008488,121.73,Employment Agency Staff Costs,Programme
HM Land Registry,HM Land Registry,07/07/2021,Employment Agency Staff Costs,Finance & Business Services Change Activities,Alexander Mann Solutions Limited,6008488,"5,928.30",Employment Agency Staff Costs,Programme
HM Land Registry,HM Land Registry,07/07/2021,Employment Agency Staff Costs,Finance & Business Services Change Activities,Alexander Mann Solutions Limited,6008488,"1,185.66",Employment Agency Staff Costs,Programme
HM Land Registry,HM Land Registry,07/07/2021,Employment Agency Staff Costs,Transformation Change Activities,Alexander Mann Solutions Limited,6008488,608.63,Employment Agency Staff Costs,Programme
HM Land Registry,HM Land Registry,07/07/2021,Employment Agency Staff Costs,Transformation Change Activities,Alexander Mann Solutions Limited,6008488,121.73,Employment Agency Staff Costs,Programme
HM Land Registry,HM Land Registry,07/07/2021,Employment Agency Staff Costs,Office of DDaT,Alexander Mann Solutions Limited,6008488,600.51,Employment Agency Staff Costs,Programme
HM Land Registry,HM Land Registry,07/07/2021,Employment Agency Staff Costs,Office of DDaT,Alexander Mann Solutions Limited,6008488,120.10,Employment Agency Staff Costs,Programme
HM Land Registry,HM Land Registry,07/07/2021,Employment Agency Staff Costs,Office of DDaT,Alexander Mann Solutions Limited,6008488,109.55,Employment Agency Staff Costs,Programme
HM Land Registry,HM Land Registry,07/07/2021,Employment Agency Staff Costs,Office of DDaT,Alexander Mann Solutions Limited,6008488,21.91,Employment Agency Staff Costs,Programme
HM Land Registry,HM Land Registry,07/07/2021,Employment Agency Staff Costs,DDaT Change Activities,Alexander Mann Solutions Limited,6008488,"3,150.30",Employment Agency Staff Costs,Programme
HM Land Registry,HM Land Registry,07/07/2021,Employment Agency Staff Costs,DDaT Change Activities,Alexander Mann Solutions Limited,6008488,630.06,Employment Agency Staff Costs,Programme
HM Land Registry,HM Land Registry,07/07/2021,Employment Agency Staff Costs,Office of DDaT,Alexander Mann Solutions Limited,6008488,600.51,Employment Agency Staff Costs,Programme
HM Land Registry,HM Land Registry,07/07/2021,Employment Agency Staff Costs,Office of DDaT,Alexander Mann Solutions Limited,6008488,120.10,Employment Agency Staff Costs,Programme
HM Land Registry,HM Land Registry,07/07/2021,Employment Agency Staff Costs,Operations Change Activities,Alexander Mann Solutions Limited,6008488,"1,355.04",Employment Agency Staff Costs,Programme
HM Land Registry,HM Land Registry,07/07/2021,Employment Agency Staff Costs,Operations Change Activities,Alexander Mann Solutions Limited,6008488,"1,355.04",Employment Agency Staff Costs,Programme
HM Land Registry,HM Land Registry,07/07/2021,Employment Agency Staff Costs,Operations Change Activities,Alexander Mann Solutions Limited,6008488,271.01,Employment Agency Staff Costs,Programme
HM Land Registry,HM Land Registry,07/07/2021,Employment Agency Staff Costs,Operations Change Activities,Alexander Mann Solutions Limited,6008488,271.01,Employment Agency Staff Costs,Programme
HM Land Registry,HM Land Registry,07/07/2021,Employment Agency Staff Costs,Transformation Change Activities,Alexander Mann Solutions Limited,6008488,486.90,Employment Agency Staff Costs,Programme
HM Land Registry,HM Land Registry,07/07/2021,Employment Agency Staff Costs,Transformation Change Activities,Alexander Mann Solutions Limited,6008488,97.38,Employment Agency Staff Costs,Programme
HM Land Registry,HM Land Registry,07/07/2021,Employment Agency Staff Costs,Transformation Change Activities,Alexander Mann Solutions Limited,6008488,576.17,Employment Agency Staff Costs,Programme
HM Land Registry,HM Land Registry,07/07/2021,Employment Agency Staff Costs,Transformation Change Activities,Alexander Mann Solutions Limited,6008488,115.23,Employment Agency Staff Costs,Programme
HM Land Registry,HM Land Registry,07/07/2021,Employment Agency Staff Costs,Transformation Change Activities,Alexander Mann Solutions Limited,6008488,365.18,Employment Agency Staff Costs,Programme
HM Land Registry,HM Land Registry,07/07/2021,Employment Agency Staff Costs,Transformation Change Activities,Alexander Mann Solutions Limited,6008488,73.04,Employment Agency Staff Costs,Programme
HM Land Registry,HM Land Registry,07/07/2021,Employment Agency Staff Costs,Transformation Change Activities,Alexander Mann Solutions Limited,6008488,365.18,Employment Agency Staff Costs,Programme
HM Land Registry,HM Land Registry,07/07/2021,Employment Agency Staff Costs,Transformation Change Activities,Alexander Mann Solutions Limited,6008488,73.04,Employment Agency Staff Costs,Programme
HM Land Registry,HM Land Registry,07/07/2021,Employment Agency Staff Costs,Transformation Change Activities,Alexander Mann Solutions Limited,6008488,608.63,Employment Agency Staff Costs,Programme
HM Land Registry,HM Land Registry,07/07/2021,Employment Agency Staff Costs,Transformation Change Activities,Alexander Mann Solutions Limited,6008488,121.73,Employment Agency Staff Costs,Programme
HM Land Registry,HM Land Registry,07/07/2021,Employment Agency Staff Costs,Transformation Change Activities,Alexander Mann Solutions Limited,6008488,486.90,Employment Agency Staff Costs,Programme
HM Land Registry,HM Land Registry,07/07/2021,Employment Agency Staff Costs,Transformation Change Activities,Alexander Mann Solutions Limited,6008488,97.38,Employment Agency Staff Costs,Programme
HM Land Registry,HM Land Registry,07/07/2021,Employment Agency Staff Costs,Finance,Alexander Mann Solutions Limited,6008488,"2,698.55",Employment Agency Staff Costs,Programme
HM Land Registry,HM Land Registry,07/07/2021,Employment Agency Staff Costs,Finance,Alexander Mann Solutions Limited,6008488,539.71,Employment Agency Staff Costs,Programme
HM Land Registry,HM Land Registry,07/07/2021,Employment Agency Staff Costs,Office of DDaT,Alexander Mann Solutions Limited,6008488,600.51,Employment Agency Staff Costs,Programme
HM Land Registry,HM Land Registry,07/07/2021,Employment Agency Staff Costs,Office of DDaT,Alexander Mann Solutions Limited,6008488,120.10,Employment Agency Staff Costs,Programme
HM Land Registry,HM Land Registry,07/07/2021,Employment Agency Staff Costs,Transformation Change Activities,Alexander Mann Solutions Limited,6008488,486.90,Employment Agency Staff Costs,Programme
HM Land Registry,HM Land Registry,07/07/2021,Employment Agency Staff Costs,Transformation Change Activities,Alexander Mann Solutions Limited,6008488,97.38,Employment Agency Staff Costs,Programme
HM Land Registry,HM Land Registry,07/07/2021,Employment Agency Staff Costs,Transformation Change Activities,Alexander Mann Solutions Limited,6008488,608.63,Employment Agency Staff Costs,Programme
HM Land Registry,HM Land Registry,07/07/2021,Employment Agency Staff Costs,Transformation Change Activities,Alexander Mann Solutions Limited,6008488,121.73,Employment Agency Staff Costs,Programme
HM Land Registry,HM Land Registry,07/07/2021,Employment Agency Staff Costs,Transformation Change Activities,Alexander Mann Solutions Limited,6008488,405.75,Employment Agency Staff Costs,Programme
HM Land Registry,HM Land Registry,07/07/2021,Employment Agency Staff Costs,Transformation Change Activities,Alexander Mann Solutions Limited,6008488,81.15,Employment Agency Staff Costs,Programme
HM Land Registry,HM Land Registry,07/07/2021,Employment Agency Staff Costs,Transformation Change Activities,Alexander Mann Solutions Limited,6008488,381.41,Employment Agency Staff Costs,Programme
HM Land Registry,HM Land Registry,07/07/2021,Employment Agency Staff Costs,Transformation Change Activities,Alexander Mann Solutions Limited,6008488,76.28,Employment Agency Staff Costs,Programme
HM Land Registry,HM Land Registry,12/07/2021,Employment Agency Staff Costs,Finance,Alexander Mann Solutions Limited,6008525,"32,849.60",Employment Agency Staff Costs,Programme
HM Land Registry,HM Land Registry,12/07/2021,Employment Agency Staff Costs,Finance,Alexander Mann Solutions Limited,6008525,"6,569.92",Employment Agency Staff Costs,Programme
HM Land Registry,HM Land Registry,12/07/2021,Employment Agency Staff Costs,Transformation Change Activities,Alexander Mann Solutions Limited,6008525,"1,217.26",Employment Agency Staff Costs,Programme
HM Land Registry,HM Land Registry,12/07/2021,Employment Agency Staff Costs,Transformation Change Activities,Alexander Mann Solutions Limited,6008525,243.45,Employment Agency Staff Costs,Programme
HM Land Registry,HM Land Registry,12/07/2021,Employment Agency Staff Costs,Transformation Change Activities,Alexander Mann Solutions Limited,6008525,"1,217.26",Employment Agency Staff Costs,Programme
HM Land Registry,HM Land Registry,12/07/2021,Employment Agency Staff Costs,Transformation Change Activities,Alexander Mann Solutions Limited,6008525,243.45,Employment Agency Staff Costs,Programme
HM Land Registry,HM Land Registry,12/07/2021,Employment Agency Staff Costs,Transformation Change Activities,Alexander Mann Solutions Limited,6008525,"1,217.26",Employment Agency Staff Costs,Programme
HM Land Registry,HM Land Registry,12/07/2021,Employment Agency Staff Costs,Transformation Change Activities,Alexander Mann Solutions Limited,6008525,243.45,Employment Agency Staff Costs,Programme
HM Land Registry,HM Land Registry,12/07/2021,Employment Agency Staff Costs,DDaT Change Activities,Alexander Mann Solutions Limited,6008525,"3,675.35",Employment Agency Staff Costs,Programme
HM Land Registry,HM Land Registry,12/07/2021,Employment Agency Staff Costs,DDaT Change Activities,Alexander Mann Solutions Limited,6008525,735.07,Employment Agency Staff Costs,Programme
HM Land Registry,HM Land Registry,12/07/2021,Employment Agency Staff Costs,DDaT Change Activities,Alexander Mann Solutions Limited,6008525,"2,520.24",Employment Agency Staff Costs,Programme
HM Land Registry,HM Land Registry,12/07/2021,Employment Agency Staff Costs,DDaT Change Activities,Alexander Mann Solutions Limited,6008525,504.05,Employment Agency Staff Costs,Programme
HM Land Registry,HM Land Registry,12/07/2021,Employment Agency Staff Costs,Transformation Change Activities,Alexander Mann Solutions Limited,6008525,"2,362.70",Employment Agency Staff Costs,Programme
HM Land Registry,HM Land Registry,12/07/2021,Employment Agency Staff Costs,Transformation Change Activities,Alexander Mann Solutions Limited,6008525,472.54,Employment Agency Staff Costs,Programme
HM Land Registry,HM Land Registry,12/07/2021,Employment Agency Staff Costs,DDaT Change Activities,Alexander Mann Solutions Limited,6008525,340.87,Employment Agency Staff Costs,Programme
HM Land Registry,HM Land Registry,12/07/2021,Employment Agency Staff Costs,DDaT Change Activities,Alexander Mann Solutions Limited,6008525,68.17,Employment Agency Staff Costs,Programme
HM Land Registry,HM Land Registry,12/07/2021,Employment Agency Staff Costs,DDaT Change Activities,Alexander Mann Solutions Limited,6008525,"2,304.55",Employment Agency Staff Costs,Programme
HM Land Registry,HM Land Registry,12/07/2021,Employment Agency Staff Costs,DDaT Change Activities,Alexander Mann Solutions Limited,6008525,460.91,Employment Agency Staff Costs,Programme
HM Land Registry,HM Land Registry,12/07/2021,Employment Agency Staff Costs,DDaT Change Activities,Alexander Mann Solutions Limited,6008525,"3,677.05",Employment Agency Staff Costs,Programme
HM Land Registry,HM Land Registry,12/07/2021,Employment Agency Staff Costs,DDaT Change Activities,Alexander Mann Solutions Limited,6008525,735.41,Employment Agency Staff Costs,Programme
HM Land Registry,HM Land Registry,12/07/2021,Employment Agency Staff Costs,DDaT Change Activities,Alexander Mann Solutions Limited,6008525,"2,887.75",Employment Agency Staff Costs,Programme
HM Land Registry,HM Land Registry,12/07/2021,Employment Agency Staff Costs,DDaT Change Activities,Alexander Mann Solutions Limited,6008525,577.55,Employment Agency Staff Costs,Programme
HM Land Registry,HM Land Registry,12/07/2021,Employment Agency Staff Costs,DDaT Change Activities,Alexander Mann Solutions Limited,6008525,"2,694.70",Employment Agency Staff Costs,Programme
HM Land Registry,HM Land Registry,12/07/2021,Employment Agency Staff Costs,DDaT Change Activities,Alexander Mann Solutions Limited,6008525,538.94,Employment Agency Staff Costs,Programme
HM Land Registry,HM Land Registry,12/07/2021,Employment Agency Staff Costs,Finance,Alexander Mann Solutions Limited,6008525,"1,942.70",Employment Agency Staff Costs,Programme
HM Land Registry,HM Land Registry,12/07/2021,Employment Agency Staff Costs,Finance,Alexander Mann Solutions Limited,6008525,388.54,Employment Agency Staff Costs,Programme
HM Land Registry,HM Land Registry,13/07/2021,Employment Agency Staff Costs,Transformation Change Activities,Alexander Mann Solutions Limited,6008546,"3,592.90",Employment Agency Staff Costs,Programme
HM Land Registry,HM Land Registry,13/07/2021,Employment Agency Staff Costs,Transformation Change Activities,Alexander Mann Solutions Limited,6008546,718.58,Employment Agency Staff Costs,Programme
HM Land Registry,HM Land Registry,13/07/2021,Employment Agency Staff Costs,Operations Change Activities,Alexander Mann Solutions Limited,6008546,"1,693.80",Employment Agency Staff Costs,Programme
HM Land Registry,HM Land Registry,13/07/2021,Employment Agency Staff Costs,Operations Change Activities,Alexander Mann Solutions Limited,6008546,"1,693.80",Employment Agency Staff Costs,Programme
HM Land Registry,HM Land Registry,13/07/2021,Employment Agency Staff Costs,Operations Change Activities,Alexander Mann Solutions Limited,6008546,338.76,Employment Agency Staff Costs,Programme
HM Land Registry,HM Land Registry,13/07/2021,Employment Agency Staff Costs,Operations Change Activities,Alexander Mann Solutions Limited,6008546,338.76,Employment Agency Staff Costs,Programme
HM Land Registry,HM Land Registry,13/07/2021,Employment Agency Staff Costs,Transformation Change Activities,Alexander Mann Solutions Limited,6008546,"3,592.90",Employment Agency Staff Costs,Programme
HM Land Registry,HM Land Registry,13/07/2021,Employment Agency Staff Costs,Transformation Change Activities,Alexander Mann Solutions Limited,6008546,718.58,Employment Agency Staff Costs,Programme
HM Land Registry,HM Land Registry,13/07/2021,Employment Agency Staff Costs,Transformation Change Activities,Alexander Mann Solutions Limited,6008546,"1,217.26",Employment Agency Staff Costs,Programme
HM Land Registry,HM Land Registry,13/07/2021,Employment Agency Staff Costs,Transformation Change Activities,Alexander Mann Solutions Limited,6008546,243.45,Employment Agency Staff Costs,Programme
HM Land Registry,HM Land Registry,13/07/2021,Employment Agency Staff Costs,Transformation Change Activities,Alexander Mann Solutions Limited,6008546,"1,030.61",Employment Agency Staff Costs,Programme
HM Land Registry,HM Land Registry,13/07/2021,Employment Agency Staff Costs,Transformation Change Activities,Alexander Mann Solutions Limited,6008546,206.12,Employment Agency Staff Costs,Programme
HM Land Registry,HM Land Registry,13/07/2021,Employment Agency Staff Costs,DDaT Change Activities,Alexander Mann Solutions Limited,6008546,589.57,Employment Agency Staff Costs,Programme
HM Land Registry,HM Land Registry,13/07/2021,Employment Agency Staff Costs,Finance,Alexander Mann Solutions Limited,6008546,"2,403.18",Employment Agency Staff Costs,Programme
HM Land Registry,HM Land Registry,13/07/2021,Employment Agency Staff Costs,DDaT Change Activities,Alexander Mann Solutions Limited,6008546,117.91,Employment Agency Staff Costs,Programme
HM Land Registry,HM Land Registry,13/07/2021,Employment Agency Staff Costs,Finance,Alexander Mann Solutions Limited,6008546,480.64,Employment Agency Staff Costs,Programme
HM Land Registry,HM Land Registry,13/07/2021,Employment Agency Staff Costs,Operations Change Activities,Alexander Mann Solutions Limited,6008546,"2,100.20",Employment Agency Staff Costs,Programme
HM Land Registry,HM Land Registry,13/07/2021,Employment Agency Staff Costs,Operations Change Activities,Alexander Mann Solutions Limited,6008546,420.04,Employment Agency Staff Costs,Programme
HM Land Registry,HM Land Registry,13/07/2021,Employment Agency Staff Costs,DDaT Change Activities,Alexander Mann Solutions Limited,6008546,"3,150.30",Employment Agency Staff Costs,Programme
HM Land Registry,HM Land Registry,13/07/2021,Employment Agency Staff Costs,DDaT Change Activities,Alexander Mann Solutions Limited,6008546,630.06,Employment Agency Staff Costs,Programme
HM Land Registry,HM Land Registry,13/07/2021,Employment Agency Staff Costs,Operations Change Activities,Alexander Mann Solutions Limited,6008546,"2,840.60",Employment Agency Staff Costs,Programme
HM Land Registry,HM Land Registry,13/07/2021,Employment Agency Staff Costs,Operations Change Activities,Alexander Mann Solutions Limited,6008546,568.12,Employment Agency Staff Costs,Programme
HM Land Registry,HM Land Registry,13/07/2021,Employment Agency Staff Costs,Transformation Change Activities,Alexander Mann Solutions Limited,6008546,973.80,Employment Agency Staff Costs,Programme
HM Land Registry,HM Land Registry,13/07/2021,Employment Agency Staff Costs,Transformation Change Activities,Alexander Mann Solutions Limited,6008546,194.76,Employment Agency Staff Costs,Programme
HM Land Registry,HM Land Registry,13/07/2021,Employment Agency Staff Costs,Transformation Change Activities,Alexander Mann Solutions Limited,6008546,608.63,Employment Agency Staff Costs,Programme
HM Land Registry,HM Land Registry,13/07/2021,Employment Agency Staff Costs,Transformation Change Activities,Alexander Mann Solutions Limited,6008546,121.73,Employment Agency Staff Costs,Programme
HM Land Registry,HM Land Registry,15/07/2021,Employment Agency Staff Costs,Operations Change Activities,Alexander Mann Solutions Limited,6008557,420.04,Employment Agency Staff Costs,Programme
HM Land Registry,HM Land Registry,15/07/2021,Employment Agency Staff Costs,Operations Change Activities,Alexander Mann Solutions Limited,6008557,"2,100.20",Employment Agency Staff Costs,Programme
HM Land Registry,HM Land Registry,15/07/2021,Employment Agency Staff Costs,Transformation Change Activities,Alexander Mann Solutions Limited,6008557,608.63,Employment Agency Staff Costs,Programme
HM Land Registry,HM Land Registry,15/07/2021,Employment Agency Staff Costs,Transformation Change Activities,Alexander Mann Solutions Limited,6008557,121.73,Employment Agency Staff Costs,Programme
HM Land Registry,HM Land Registry,15/07/2021,Employment Agency Staff Costs,Operations Change Activities,Alexander Mann Solutions Limited,6008557,"2,100.20",Employment Agency Staff Costs,Programme
HM Land Registry,HM Land Registry,15/07/2021,Employment Agency Staff Costs,Operations Change Activities,Alexander Mann Solutions Limited,6008557,420.04,Employment Agency Staff Costs,Programme
HM Land Registry,HM Land Registry,15/07/2021,Employment Agency Staff Costs,Transformation Change Activities,Alexander Mann Solutions Limited,6008557,612.68,Employment Agency Staff Costs,Programme
HM Land Registry,HM Land Registry,15/07/2021,Employment Agency Staff Costs,Transformation Change Activities,Alexander Mann Solutions Limited,6008557,122.54,Employment Agency Staff Costs,Programme
HM Land Registry,HM Land Registry,15/07/2021,Employment Agency Staff Costs,Office of DDaT,Alexander Mann Solutions Limited,6008557,600.51,Employment Agency Staff Costs,Programme
HM Land Registry,HM Land Registry,15/07/2021,Employment Agency Staff Costs,Office of DDaT,Alexander Mann Solutions Limited,6008557,120.10,Employment Agency Staff Costs,Programme
HM Land Registry,HM Land Registry,15/07/2021,Employment Agency Staff Costs,DDaT Change Activities,Alexander Mann Solutions Limited,6008557,"3,150.30",Employment Agency Staff Costs,Programme
HM Land Registry,HM Land Registry,15/07/2021,Employment Agency Staff Costs,DDaT Change Activities,Alexander Mann Solutions Limited,6008557,630.06,Employment Agency Staff Costs,Programme
HM Land Registry,HM Land Registry,15/07/2021,Employment Agency Staff Costs,Transformation Change Activities,Alexander Mann Solutions Limited,6008557,486.90,Employment Agency Staff Costs,Programme
HM Land Registry,HM Land Registry,15/07/2021,Employment Agency Staff Costs,Transformation Change Activities,Alexander Mann Solutions Limited,6008557,97.38,Employment Agency Staff Costs,Programme
HM Land Registry,HM Land Registry,15/07/2021,Employment Agency Staff Costs,Transformation Change Activities,Alexander Mann Solutions Limited,6008557,600.51,Employment Agency Staff Costs,Programme
HM Land Registry,HM Land Registry,15/07/2021,Employment Agency Staff Costs,Transformation Change Activities,Alexander Mann Solutions Limited,6008557,120.10,Employment Agency Staff Costs,Programme
HM Land Registry,HM Land Registry,15/07/2021,Employment Agency Staff Costs,Transformation Change Activities,Alexander Mann Solutions Limited,6008557,486.90,Employment Agency Staff Costs,Programme
HM Land Registry,HM Land Registry,15/07/2021,Employment Agency Staff Costs,Transformation Change Activities,Alexander Mann Solutions Limited,6008557,97.38,Employment Agency Staff Costs,Programme
HM Land Registry,HM Land Registry,15/07/2021,Employment Agency Staff Costs,Transformation Change Activities,Alexander Mann Solutions Limited,6008557,97.38,Employment Agency Staff Costs,Programme
HM Land Registry,HM Land Registry,15/07/2021,Employment Agency Staff Costs,Transformation Change Activities,Alexander Mann Solutions Limited,6008557,486.90,Employment Agency Staff Costs,Programme
HM Land Registry,HM Land Registry,15/07/2021,Employment Agency Staff Costs,Transformation Change Activities,Alexander Mann Solutions Limited,6008557,"1,217.26",Employment Agency Staff Costs,Programme
HM Land Registry,HM Land Registry,15/07/2021,Employment Agency Staff Costs,Transformation Change Activities,Alexander Mann Solutions Limited,6008557,243.45,Employment Agency Staff Costs,Programme
HM Land Registry,HM Land Registry,15/07/2021,Employment Agency Staff Costs,Transformation Change Activities,Alexander Mann Solutions Limited,6008557,608.63,Employment Agency Staff Costs,Programme
HM Land Registry,HM Land Registry,15/07/2021,Employment Agency Staff Costs,Transformation Change Activities,Alexander Mann Solutions Limited,6008557,121.73,Employment Agency Staff Costs,Programme
HM Land Registry,HM Land Registry,15/07/2021,Employment Agency Staff Costs,Transformation Change Activities,Alexander Mann Solutions Limited,6008557,608.63,Employment Agency Staff Costs,Programme
HM Land Registry,HM Land Registry,15/07/2021,Employment Agency Staff Costs,Transformation Change Activities,Alexander Mann Solutions Limited,6008557,121.73,Employment Agency Staff Costs,Programme
HM Land Registry,HM Land Registry,15/07/2021,Employment Agency Staff Costs,Finance,Alexander Mann Solutions Limited,6008557,"2,698.55",Employment Agency Staff Costs,Programme
HM Land Registry,HM Land Registry,15/07/2021,Employment Agency Staff Costs,Finance,Alexander Mann Solutions Limited,6008557,539.71,Employment Agency Staff Costs,Programme
HM Land Registry,HM Land Registry,15/07/2021,Employment Agency Staff Costs,Office of DDaT,Alexander Mann Solutions Limited,6008557,600.51,Employment Agency Staff Costs,Programme
HM Land Registry,HM Land Registry,15/07/2021,Employment Agency Staff Costs,Office of DDaT,Alexander Mann Solutions Limited,6008557,120.10,Employment Agency Staff Costs,Programme
HM Land Registry,HM Land Registry,15/07/2021,Employment Agency Staff Costs,Transformation Change Activities,Alexander Mann Solutions Limited,6008557,608.63,Employment Agency Staff Costs,Programme
HM Land Registry,HM Land Registry,15/07/2021,Employment Agency Staff Costs,Transformation Change Activities,Alexander Mann Solutions Limited,6008557,121.73,Employment Agency Staff Costs,Programme
HM Land Registry,HM Land Registry,15/07/2021,Employment Agency Staff Costs,Transformation Change Activities,Alexander Mann Solutions Limited,6008557,608.63,Employment Agency Staff Costs,Programme
HM Land Registry,HM Land Registry,15/07/2021,Employment Agency Staff Costs,Transformation Change Activities,Alexander Mann Solutions Limited,6008557,121.73,Employment Agency Staff Costs,Programme
HM Land Registry,HM Land Registry,15/07/2021,Employment Agency Staff Costs,Transformation Change Activities,Alexander Mann Solutions Limited,6008557,608.63,Employment Agency Staff Costs,Programme
HM Land Registry,HM Land Registry,15/07/2021,Employment Agency Staff Costs,Transformation Change Activities,Alexander Mann Solutions Limited,6008557,121.73,Employment Agency Staff Costs,Programme
HM Land Registry,HM Land Registry,15/07/2021,Employment Agency Staff Costs,Transformation Change Activities,Alexander Mann Solutions Limited,6008557,608.63,Employment Agency Staff Costs,Programme
HM Land Registry,HM Land Registry,15/07/2021,Employment Agency Staff Costs,Transformation Change Activities,Alexander Mann Solutions Limited,6008557,121.73,Employment Agency Staff Costs,Programme
HM Land Registry,HM Land Registry,15/07/2021,Employment Agency Staff Costs,Transformation Change Activities,Alexander Mann Solutions Limited,6008557,608.63,Employment Agency Staff Costs,Programme
HM Land Registry,HM Land Registry,15/07/2021,Employment Agency Staff Costs,Transformation Change Activities,Alexander Mann Solutions Limited,6008557,121.73,Employment Agency Staff Costs,Programme
HM Land Registry,HM Land Registry,15/07/2021,Employment Agency Staff Costs,Transformation Change Activities,Alexander Mann Solutions Limited,6008557,"1,217.26",Employment Agency Staff Costs,Programme
HM Land Registry,HM Land Registry,15/07/2021,Employment Agency Staff Costs,Transformation Change Activities,Alexander Mann Solutions Limited,6008557,243.45,Employment Agency Staff Costs,Programme
HM Land Registry,HM Land Registry,15/07/2021,Employment Agency Staff Costs,Office of DDaT,Alexander Mann Solutions Limited,6008557,608.63,Employment Agency Staff Costs,Programme
HM Land Registry,HM Land Registry,15/07/2021,Employment Agency Staff Costs,Office of DDaT,Alexander Mann Solutions Limited,6008557,121.73,Employment Agency Staff Costs,Programme
HM Land Registry,HM Land Registry,15/07/2021,Employment Agency Staff Costs,Operations Change Activities,Alexander Mann Solutions Limited,6008557,"2,078.75",Employment Agency Staff Costs,Programme
HM Land Registry,HM Land Registry,15/07/2021,Employment Agency Staff Costs,Operations Change Activities,Alexander Mann Solutions Limited,6008557,415.75,Employment Agency Staff Costs,Programme
HM Land Registry,HM Land Registry,15/07/2021,Employment Agency Staff Costs,Operations Change Activities,Alexander Mann Solutions Limited,6008557,"2,669.05",Employment Agency Staff Costs,Programme
HM Land Registry,HM Land Registry,15/07/2021,Employment Agency Staff Costs,Operations Change Activities,Alexander Mann Solutions Limited,6008557,533.81,Employment Agency Staff Costs,Programme
HM Land Registry,HM Land Registry,19/07/2021,Employment Agency Staff Costs,Finance & Business Services Change Activities,Alexander Mann Solutions Limited,6008588,"1,106.62",Employment Agency Staff Costs,Programme
HM Land Registry,HM Land Registry,19/07/2021,Employment Agency Staff Costs,Finance & Business Services Change Activities,Alexander Mann Solutions Limited,6008588,"5,533.08",Employment Agency Staff Costs,Programme
HM Land Registry,HM Land Registry,19/07/2021,Employment Agency Staff Costs,Office of DDaT,Alexander Mann Solutions Limited,6008588,313.57,Employment Agency Staff Costs,Programme
HM Land Registry,HM Land Registry,19/07/2021,Employment Agency Staff Costs,Office of DDaT,Alexander Mann Solutions Limited,6008588,"1,567.83",Employment Agency Staff Costs,Programme
HM Land Registry,HM Land Registry,19/07/2021,Employment Agency Staff Costs,Customer Insight & Experience,Alexander Mann Solutions Limited,6008588,"5,953.99",Employment Agency Staff Costs,Programme
HM Land Registry,HM Land Registry,19/07/2021,Employment Agency Staff Costs,Office of DDaT,Alexander Mann Solutions Limited,6008588,"1,567.83",Employment Agency Staff Costs,Programme
HM Land Registry,HM Land Registry,19/07/2021,Employment Agency Staff Costs,Office of DDaT,Alexander Mann Solutions Limited,6008588,313.57,Employment Agency Staff Costs,Programme
HM Land Registry,HM Land Registry,19/07/2021,Employment Agency Staff Costs,Customer Insight & Experience,Alexander Mann Solutions Limited,6008588,704.80,Employment Agency Staff Costs,Programme
HM Land Registry,HM Land Registry,19/07/2021,Employment Agency Staff Costs,Operations Change Activities,Alexander Mann Solutions Limited,6008588,"2,840.60",Employment Agency Staff Costs,Programme
HM Land Registry,HM Land Registry,19/07/2021,Employment Agency Staff Costs,Operations Change Activities,Alexander Mann Solutions Limited,6008588,568.12,Employment Agency Staff Costs,Programme
HM Land Registry,HM Land Registry,19/07/2021,Employment Agency Staff Costs,Transformation Change Activities,Alexander Mann Solutions Limited,6008588,608.63,Employment Agency Staff Costs,Programme
HM Land Registry,HM Land Registry,19/07/2021,Employment Agency Staff Costs,Transformation Change Activities,Alexander Mann Solutions Limited,6008588,121.73,Employment Agency Staff Costs,Programme
HM Land Registry,HM Land Registry,19/07/2021,Employment Agency Staff Costs,Transformation Change Activities,Alexander Mann Solutions Limited,6008588,608.63,Employment Agency Staff Costs,Programme
HM Land Registry,HM Land Registry,19/07/2021,Employment Agency Staff Costs,Transformation Change Activities,Alexander Mann Solutions Limited,6008588,121.73,Employment Agency Staff Costs,Programme
HM Land Registry,HM Land Registry,19/07/2021,Employment Agency Staff Costs,Transformation Change Activities,Alexander Mann Solutions Limited,6008588,"2,362.70",Employment Agency Staff Costs,Programme
HM Land Registry,HM Land Registry,19/07/2021,Employment Agency Staff Costs,Transformation Change Activities,Alexander Mann Solutions Limited,6008588,472.54,Employment Agency Staff Costs,Programme
HM Land Registry,HM Land Registry,19/07/2021,Employment Agency Staff Costs,DDaT Change Activities,Alexander Mann Solutions Limited,6008588,"1,136.24",Employment Agency Staff Costs,Programme
HM Land Registry,HM Land Registry,19/07/2021,Employment Agency Staff Costs,DDaT Change Activities,Alexander Mann Solutions Limited,6008588,227.25,Employment Agency Staff Costs,Programme
HM Land Registry,HM Land Registry,19/07/2021,Employment Agency Staff Costs,DDaT Change Activities,Alexander Mann Solutions Limited,6008588,"3,408.70",Employment Agency Staff Costs,Programme
HM Land Registry,HM Land Registry,19/07/2021,Employment Agency Staff Costs,DDaT Change Activities,Alexander Mann Solutions Limited,6008588,681.74,Employment Agency Staff Costs,Programme
HM Land Registry,HM Land Registry,19/07/2021,Employment Agency Staff Costs,DDaT Change Activities,Alexander Mann Solutions Limited,6008588,"2,304.55",Employment Agency Staff Costs,Programme
HM Land Registry,HM Land Registry,19/07/2021,Employment Agency Staff Costs,DDaT Change Activities,Alexander Mann Solutions Limited,6008588,460.91,Employment Agency Staff Costs,Programme
HM Land Registry,HM Land Registry,19/07/2021,Employment Agency Staff Costs,DDaT Change Activities,Alexander Mann Solutions Limited,6008588,"2,941.64",Employment Agency Staff Costs,Programme
HM Land Registry,HM Land Registry,19/07/2021,Employment Agency Staff Costs,DDaT Change Activities,Alexander Mann Solutions Limited,6008588,588.33,Employment Agency Staff Costs,Programme
HM Land Registry,HM Land Registry,19/07/2021,Employment Agency Staff Costs,DDaT Change Activities,Alexander Mann Solutions Limited,6008588,"2,887.75",Employment Agency Staff Costs,Programme
HM Land Registry,HM Land Registry,19/07/2021,Employment Agency Staff Costs,DDaT Change Activities,Alexander Mann Solutions Limited,6008588,577.55,Employment Agency Staff Costs,Programme
HM Land Registry,HM Land Registry,19/07/2021,Employment Agency Staff Costs,DDaT Change Activities,Alexander Mann Solutions Limited,6008588,"2,694.70",Employment Agency Staff Costs,Programme
HM Land Registry,HM Land Registry,19/07/2021,Employment Agency Staff Costs,DDaT Change Activities,Alexander Mann Solutions Limited,6008588,538.94,Employment Agency Staff Costs,Programme
HM Land Registry,HM Land Registry,19/07/2021,Employment Agency Staff Costs,Finance,Alexander Mann Solutions Limited,6008588,388.54,Employment Agency Staff Costs,Programme
HM Land Registry,HM Land Registry,19/07/2021,Employment Agency Staff Costs,Finance,Alexander Mann Solutions Limited,6008588,"1,942.70",Employment Agency Staff Costs,Programme
HM Land Registry,HM Land Registry,19/07/2021,Employment Agency Staff Costs,Customer Insight & Experience,Alexander Mann Solutions Limited,6008588,681.80,Employment Agency Staff Costs,Programme
HM Land Registry,HM Land Registry,19/07/2021,Employment Agency Staff Costs,DDaT Change Activities,Alexander Mann Solutions Limited,6008588,"-5,113.08",Employment Agency Staff Costs,Programme
HM Land Registry,HM Land Registry,19/07/2021,Employment Agency Staff Costs,DDaT Change Activities,Alexander Mann Solutions Limited,6008588,"-1,022.62",Employment Agency Staff Costs,Programme
HM Land Registry,HM Land Registry,21/07/2021,Employment Agency Staff Costs,DDaT Change Activities,Alexander Mann Solutions Limited,6008611,"2,840.60",Employment Agency Staff Costs,Programme
HM Land Registry,HM Land Registry,21/07/2021,Employment Agency Staff Costs,DDaT Change Activities,Alexander Mann Solutions Limited,6008611,568.12,Employment Agency Staff Costs,Programme
HM Land Registry,HM Land Registry,21/07/2021,Employment Agency Staff Costs,Office of DDaT,Alexander Mann Solutions Limited,6008611,600.51,Employment Agency Staff Costs,Programme
HM Land Registry,HM Land Registry,21/07/2021,Employment Agency Staff Costs,Office of DDaT,Alexander Mann Solutions Limited,6008611,120.10,Employment Agency Staff Costs,Programme
HM Land Registry,HM Land Registry,21/07/2021,Employment Agency Staff Costs,Transformation Change Activities,Alexander Mann Solutions Limited,6008611,608.63,Employment Agency Staff Costs,Programme
HM Land Registry,HM Land Registry,21/07/2021,Employment Agency Staff Costs,Transformation Change Activities,Alexander Mann Solutions Limited,6008611,121.73,Employment Agency Staff Costs,Programme
HM Land Registry,HM Land Registry,21/07/2021,Employment Agency Staff Costs,Operations Change Activities,Alexander Mann Solutions Limited,6008611,420.04,Employment Agency Staff Costs,Programme
HM Land Registry,HM Land Registry,21/07/2021,Employment Agency Staff Costs,Operations Change Activities,Alexander Mann Solutions Limited,6008611,"2,100.20",Employment Agency Staff Costs,Programme
HM Land Registry,HM Land Registry,21/07/2021,Employment Agency Staff Costs,Office of DDaT,Alexander Mann Solutions Limited,6008611,563.99,Employment Agency Staff Costs,Programme
HM Land Registry,HM Land Registry,21/07/2021,Employment Agency Staff Costs,Office of DDaT,Alexander Mann Solutions Limited,6008611,112.80,Employment Agency Staff Costs,Programme
HM Land Registry,HM Land Registry,21/07/2021,Employment Agency Staff Costs,Operations Change Activities,Alexander Mann Solutions Limited,6008611,"1,693.80",Employment Agency Staff Costs,Programme
HM Land Registry,HM Land Registry,21/07/2021,Employment Agency Staff Costs,Operations Change Activities,Alexander Mann Solutions Limited,6008611,"1,693.80",Employment Agency Staff Costs,Programme
HM Land Registry,HM Land Registry,21/07/2021,Employment Agency Staff Costs,Operations Change Activities,Alexander Mann Solutions Limited,6008611,338.76,Employment Agency Staff Costs,Programme
HM Land Registry,HM Land Registry,21/07/2021,Employment Agency Staff Costs,Operations Change Activities,Alexander Mann Solutions Limited,6008611,338.76,Employment Agency Staff Costs,Programme
HM Land Registry,HM Land Registry,21/07/2021,Employment Agency Staff Costs,Transformation Change Activities,Alexander Mann Solutions Limited,6008611,"3,592.90",Employment Agency Staff Costs,Programme
HM Land Registry,HM Land Registry,21/07/2021,Employment Agency Staff Costs,Transformation Change Activities,Alexander Mann Solutions Limited,6008611,718.58,Employment Agency Staff Costs,Programme
HM Land Registry,HM Land Registry,21/07/2021,Employment Agency Staff Costs,Transformation Change Activities,Alexander Mann Solutions Limited,6008611,608.63,Employment Agency Staff Costs,Programme
HM Land Registry,HM Land Registry,21/07/2021,Employment Agency Staff Costs,Transformation Change Activities,Alexander Mann Solutions Limited,6008611,121.73,Employment Agency Staff Costs,Programme
HM Land Registry,HM Land Registry,21/07/2021,Employment Agency Staff Costs,Transformation Change Activities,Alexander Mann Solutions Limited,6008611,608.63,Employment Agency Staff Costs,Programme
HM Land Registry,HM Land Registry,21/07/2021,Employment Agency Staff Costs,Transformation Change Activities,Alexander Mann Solutions Limited,6008611,121.73,Employment Agency Staff Costs,Programme
HM Land Registry,HM Land Registry,21/07/2021,Employment Agency Staff Costs,Transformation Change Activities,Alexander Mann Solutions Limited,6008611,608.63,Employment Agency Staff Costs,Programme
HM Land Registry,HM Land Registry,21/07/2021,Employment Agency Staff Costs,Transformation Change Activities,Alexander Mann Solutions Limited,6008611,121.73,Employment Agency Staff Costs,Programme
HM Land Registry,HM Land Registry,21/07/2021,Employment Agency Staff Costs,Transformation Change Activities,Alexander Mann Solutions Limited,6008611,608.63,Employment Agency Staff Costs,Programme
HM Land Registry,HM Land Registry,21/07/2021,Employment Agency Staff Costs,Transformation Change Activities,Alexander Mann Solutions Limited,6008611,121.73,Employment Agency Staff Costs,Programme
HM Land Registry,HM Land Registry,21/07/2021,Employment Agency Staff Costs,Transformation Change Activities,Alexander Mann Solutions Limited,6008611,608.63,Employment Agency Staff Costs,Programme
HM Land Registry,HM Land Registry,21/07/2021,Employment Agency Staff Costs,Transformation Change Activities,Alexander Mann Solutions Limited,6008611,121.73,Employment Agency Staff Costs,Programme
HM Land Registry,HM Land Registry,21/07/2021,Employment Agency Staff Costs,Transformation Change Activities,Alexander Mann Solutions Limited,6008611,121.73,Employment Agency Staff Costs,Programme
HM Land Registry,HM Land Registry,21/07/2021,Employment Agency Staff Costs,Transformation Change Activities,Alexander Mann Solutions Limited,6008611,24.35,Employment Agency Staff Costs,Programme
HM Land Registry,HM Land Registry,21/07/2021,Employment Agency Staff Costs,Transformation Change Activities,Alexander Mann Solutions Limited,6008611,608.63,Employment Agency Staff Costs,Programme
HM Land Registry,HM Land Registry,21/07/2021,Employment Agency Staff Costs,Transformation Change Activities,Alexander Mann Solutions Limited,6008611,121.73,Employment Agency Staff Costs,Programme
HM Land Registry,HM Land Registry,21/07/2021,Employment Agency Staff Costs,Transformation Change Activities,Alexander Mann Solutions Limited,6008611,608.63,Employment Agency Staff Costs,Programme
HM Land Registry,HM Land Registry,21/07/2021,Employment Agency Staff Costs,Transformation Change Activities,Alexander Mann Solutions Limited,6008611,121.73,Employment Agency Staff Costs,Programme
HM Land Registry,HM Land Registry,21/07/2021,Employment Agency Staff Costs,Transformation Change Activities,Alexander Mann Solutions Limited,6008611,608.63,Employment Agency Staff Costs,Programme
HM Land Registry,HM Land Registry,21/07/2021,Employment Agency Staff Costs,Transformation Change Activities,Alexander Mann Solutions Limited,6008611,121.73,Employment Agency Staff Costs,Programme
HM Land Registry,HM Land Registry,21/07/2021,Employment Agency Staff Costs,Transformation Change Activities,Alexander Mann Solutions Limited,6008611,608.63,Employment Agency Staff Costs,Programme
HM Land Registry,HM Land Registry,21/07/2021,Employment Agency Staff Costs,Transformation Change Activities,Alexander Mann Solutions Limited,6008611,121.73,Employment Agency Staff Costs,Programme
HM Land Registry,HM Land Registry,21/07/2021,Employment Agency Staff Costs,Transformation Change Activities,Alexander Mann Solutions Limited,6008611,608.63,Employment Agency Staff Costs,Programme
HM Land Registry,HM Land Registry,21/07/2021,Employment Agency Staff Costs,Transformation Change Activities,Alexander Mann Solutions Limited,6008611,121.73,Employment Agency Staff Costs,Programme
HM Land Registry,HM Land Registry,21/07/2021,Employment Agency Staff Costs,Finance,Alexander Mann Solutions Limited,6008611,"2,698.55",Employment Agency Staff Costs,Programme
HM Land Registry,HM Land Registry,21/07/2021,Employment Agency Staff Costs,Finance,Alexander Mann Solutions Limited,6008611,539.71,Employment Agency Staff Costs,Programme
HM Land Registry,HM Land Registry,21/07/2021,Employment Agency Staff Costs,Office of DDaT,Alexander Mann Solutions Limited,6008611,120.10,Employment Agency Staff Costs,Programme
HM Land Registry,HM Land Registry,21/07/2021,Employment Agency Staff Costs,Office of DDaT,Alexander Mann Solutions Limited,6008611,600.51,Employment Agency Staff Costs,Programme
HM Land Registry,HM Land Registry,21/07/2021,Employment Agency Staff Costs,Transformation Change Activities,Alexander Mann Solutions Limited,6008611,608.63,Employment Agency Staff Costs,Programme
HM Land Registry,HM Land Registry,21/07/2021,Employment Agency Staff Costs,Transformation Change Activities,Alexander Mann Solutions Limited,6008611,121.73,Employment Agency Staff Costs,Programme
HM Land Registry,HM Land Registry,21/07/2021,Employment Agency Staff Costs,Transformation Change Activities,Alexander Mann Solutions Limited,6008611,608.63,Employment Agency Staff Costs,Programme
HM Land Registry,HM Land Registry,21/07/2021,Employment Agency Staff Costs,Transformation Change Activities,Alexander Mann Solutions Limited,6008611,121.73,Employment Agency Staff Costs,Programme
HM Land Registry,HM Land Registry,21/07/2021,Employment Agency Staff Costs,Transformation Change Activities,Alexander Mann Solutions Limited,6008611,568.05,Employment Agency Staff Costs,Programme
HM Land Registry,HM Land Registry,21/07/2021,Employment Agency Staff Costs,Transformation Change Activities,Alexander Mann Solutions Limited,6008611,113.61,Employment Agency Staff Costs,Programme
HM Land Registry,HM Land Registry,21/07/2021,Employment Agency Staff Costs,Transformation Change Activities,Alexander Mann Solutions Limited,6008611,608.63,Employment Agency Staff Costs,Programme
HM Land Registry,HM Land Registry,21/07/2021,Employment Agency Staff Costs,Transformation Change Activities,Alexander Mann Solutions Limited,6008611,121.73,Employment Agency Staff Costs,Programme
HM Land Registry,HM Land Registry,21/07/2021,Employment Agency Staff Costs,Transformation Change Activities,Alexander Mann Solutions Limited,6008611,608.63,Employment Agency Staff Costs,Programme
HM Land Registry,HM Land Registry,21/07/2021,Employment Agency Staff Costs,Transformation Change Activities,Alexander Mann Solutions Limited,6008611,121.73,Employment Agency Staff Costs,Programme
HM Land Registry,HM Land Registry,21/07/2021,Employment Agency Staff Costs,DDaT Change Activities,Alexander Mann Solutions Limited,6008611,"2,520.24",Employment Agency Staff Costs,Programme
HM Land Registry,HM Land Registry,21/07/2021,Employment Agency Staff Costs,DDaT Change Activities,Alexander Mann Solutions Limited,6008611,504.05,Employment Agency Staff Costs,Programme
HM Land Registry,HM Land Registry,21/07/2021,Employment Agency Staff Costs,Office of DDaT,Alexander Mann Solutions Limited,6008611,608.63,Employment Agency Staff Costs,Programme
HM Land Registry,HM Land Registry,21/07/2021,Employment Agency Staff Costs,Office of DDaT,Alexander Mann Solutions Limited,6008611,121.73,Employment Agency Staff Costs,Programme
HM Land Registry,HM Land Registry,21/07/2021,Employment Agency Staff Costs,Finance,Alexander Mann Solutions Limited,6008611,"2,403.18",Employment Agency Staff Costs,Programme
HM Land Registry,HM Land Registry,21/07/2021,Employment Agency Staff Costs,DDaT Change Activities,Alexander Mann Solutions Limited,6008611,589.57,Employment Agency Staff Costs,Programme
HM Land Registry,HM Land Registry,21/07/2021,Employment Agency Staff Costs,Finance,Alexander Mann Solutions Limited,6008611,480.64,Employment Agency Staff Costs,Programme
HM Land Registry,HM Land Registry,21/07/2021,Employment Agency Staff Costs,DDaT Change Activities,Alexander Mann Solutions Limited,6008611,117.91,Employment Agency Staff Costs,Programme
HM Land Registry,HM Land Registry,21/07/2021,Employment Agency Staff Costs,Operations Change Activities,Alexander Mann Solutions Limited,6008611,"2,100.20",Employment Agency Staff Costs,Programme
HM Land Registry,HM Land Registry,21/07/2021,Employment Agency Staff Costs,Operations Change Activities,Alexander Mann Solutions Limited,6008611,420.04,Employment Agency Staff Costs,Programme
HM Land Registry,HM Land Registry,21/07/2021,Employment Agency Staff Costs,Operations Change Activities,Alexander Mann Solutions Limited,6008611,"5,775.50",Employment Agency Staff Costs,Programme
HM Land Registry,HM Land Registry,21/07/2021,Employment Agency Staff Costs,Operations Change Activities,Alexander Mann Solutions Limited,6008611,"1,155.10",Employment Agency Staff Costs,Programme
HM Land Registry,HM Land Registry,21/07/2021,Employment Agency Staff Costs,DDaT Change Activities,Alexander Mann Solutions Limited,6008611,"3,150.30",Employment Agency Staff Costs,Programme
HM Land Registry,HM Land Registry,21/07/2021,Employment Agency Staff Costs,DDaT Change Activities,Alexander Mann Solutions Limited,6008611,630.06,Employment Agency Staff Costs,Programme
HM Land Registry,HM Land Registry,21/07/2021,Employment Agency Staff Costs,Operations Change Activities,Alexander Mann Solutions Limited,6008611,"2,100.20",Employment Agency Staff Costs,Programme
HM Land Registry,HM Land Registry,21/07/2021,Employment Agency Staff Costs,Operations Change Activities,Alexander Mann Solutions Limited,6008611,420.04,Employment Agency Staff Costs,Programme
HM Land Registry,HM Land Registry,21/07/2021,Employment Agency Staff Costs,Operations Change Activities,Alexander Mann Solutions Limited,6008611,"2,078.75",Employment Agency Staff Costs,Programme
HM Land Registry,HM Land Registry,21/07/2021,Employment Agency Staff Costs,Operations Change Activities,Alexander Mann Solutions Limited,6008611,415.75,Employment Agency Staff Costs,Programme
HM Land Registry,HM Land Registry,21/07/2021,Employment Agency Staff Costs,Operations Change Activities,Alexander Mann Solutions Limited,6008611,"2,402.15",Employment Agency Staff Costs,Programme
HM Land Registry,HM Land Registry,21/07/2021,Employment Agency Staff Costs,Operations Change Activities,Alexander Mann Solutions Limited,6008611,480.43,Employment Agency Staff Costs,Programme
HM Land Registry,HM Land Registry,26/07/2021,Employment Agency Staff Costs,Transformation Change Activities,Alexander Mann Solutions Limited,6008662,608.63,Employment Agency Staff Costs,Programme
HM Land Registry,HM Land Registry,26/07/2021,Employment Agency Staff Costs,Transformation Change Activities,Alexander Mann Solutions Limited,6008662,121.73,Employment Agency Staff Costs,Programme
HM Land Registry,HM Land Registry,26/07/2021,Employment Agency Staff Costs,Transformation Change Activities,Alexander Mann Solutions Limited,6008662,608.63,Employment Agency Staff Costs,Programme
HM Land Registry,HM Land Registry,26/07/2021,Employment Agency Staff Costs,Transformation Change Activities,Alexander Mann Solutions Limited,6008662,121.73,Employment Agency Staff Costs,Programme
HM Land Registry,HM Land Registry,26/07/2021,Employment Agency Staff Costs,Transformation Change Activities,Alexander Mann Solutions Limited,6008662,568.05,Employment Agency Staff Costs,Programme
HM Land Registry,HM Land Registry,26/07/2021,Employment Agency Staff Costs,Transformation Change Activities,Alexander Mann Solutions Limited,6008662,113.61,Employment Agency Staff Costs,Programme
HM Land Registry,HM Land Registry,26/07/2021,Employment Agency Staff Costs,DDaT Change Activities,Alexander Mann Solutions Limited,6008662,"2,520.24",Employment Agency Staff Costs,Programme
HM Land Registry,HM Land Registry,26/07/2021,Employment Agency Staff Costs,DDaT Change Activities,Alexander Mann Solutions Limited,6008662,504.05,Employment Agency Staff Costs,Programme
HM Land Registry,HM Land Registry,26/07/2021,Employment Agency Staff Costs,Office of DDaT,Alexander Mann Solutions Limited,6008662,608.63,Employment Agency Staff Costs,Programme
HM Land Registry,HM Land Registry,26/07/2021,Employment Agency Staff Costs,Office of DDaT,Alexander Mann Solutions Limited,6008662,121.73,Employment Agency Staff Costs,Programme
HM Land Registry,HM Land Registry,26/07/2021,Employment Agency Staff Costs,Operations Change Activities,Alexander Mann Solutions Limited,6008662,"2,100.20",Employment Agency Staff Costs,Programme
HM Land Registry,HM Land Registry,26/07/2021,Employment Agency Staff Costs,Operations Change Activities,Alexander Mann Solutions Limited,6008662,420.04,Employment Agency Staff Costs,Programme
HM Land Registry,HM Land Registry,26/07/2021,Employment Agency Staff Costs,Operations Change Activities,Alexander Mann Solutions Limited,6008662,"2,887.75",Employment Agency Staff Costs,Programme
HM Land Registry,HM Land Registry,26/07/2021,Employment Agency Staff Costs,Operations Change Activities,Alexander Mann Solutions Limited,6008662,577.55,Employment Agency Staff Costs,Programme
HM Land Registry,HM Land Registry,26/07/2021,Employment Agency Staff Costs,DDaT Change Activities,Alexander Mann Solutions Limited,6008662,"3,150.30",Employment Agency Staff Costs,Programme
HM Land Registry,HM Land Registry,26/07/2021,Employment Agency Staff Costs,DDaT Change Activities,Alexander Mann Solutions Limited,6008662,630.06,Employment Agency Staff Costs,Programme
HM Land Registry,HM Land Registry,26/07/2021,Employment Agency Staff Costs,Operations Change Activities,Alexander Mann Solutions Limited,6008662,"2,078.75",Employment Agency Staff Costs,Programme
HM Land Registry,HM Land Registry,26/07/2021,Employment Agency Staff Costs,Operations Change Activities,Alexander Mann Solutions Limited,6008662,415.75,Employment Agency Staff Costs,Programme
HM Land Registry,HM Land Registry,26/07/2021,Employment Agency Staff Costs,Operations Change Activities,Alexander Mann Solutions Limited,6008662,"2,669.05",Employment Agency Staff Costs,Programme
HM Land Registry,HM Land Registry,26/07/2021,Employment Agency Staff Costs,Operations Change Activities,Alexander Mann Solutions Limited,6008662,533.81,Employment Agency Staff Costs,Programme
HM Land Registry,HM Land Registry,26/07/2021,Employment Agency Staff Costs,Operations Change Activities,Alexander Mann Solutions Limited,6008662,"2,840.60",Employment Agency Staff Costs,Programme
HM Land Registry,HM Land Registry,26/07/2021,Employment Agency Staff Costs,Operations Change Activities,Alexander Mann Solutions Limited,6008662,568.12,Employment Agency Staff Costs,Programme
HM Land Registry,HM Land Registry,26/07/2021,Employment Agency Staff Costs,Transformation Change Activities,Alexander Mann Solutions Limited,6008662,608.63,Employment Agency Staff Costs,Programme
HM Land Registry,HM Land Registry,26/07/2021,Employment Agency Staff Costs,Transformation Change Activities,Alexander Mann Solutions Limited,6008662,121.73,Employment Agency Staff Costs,Programme
HM Land Registry,HM Land Registry,26/07/2021,Employment Agency Staff Costs,Transformation Change Activities,Alexander Mann Solutions Limited,6008662,547.76,Employment Agency Staff Costs,Programme
HM Land Registry,HM Land Registry,26/07/2021,Employment Agency Staff Costs,Transformation Change Activities,Alexander Mann Solutions Limited,6008662,109.55,Employment Agency Staff Costs,Programme
HM Land Registry,HM Land Registry,26/07/2021,Employment Agency Staff Costs,Transformation Change Activities,Alexander Mann Solutions Limited,6008662,"2,362.70",Employment Agency Staff Costs,Programme
HM Land Registry,HM Land Registry,26/07/2021,Employment Agency Staff Costs,Transformation Change Activities,Alexander Mann Solutions Limited,6008662,472.54,Employment Agency Staff Costs,Programme
HM Land Registry,HM Land Registry,26/07/2021,Employment Agency Staff Costs,DDaT Change Activities,Alexander Mann Solutions Limited,6008662,"1,363.48",Employment Agency Staff Costs,Programme
HM Land Registry,HM Land Registry,26/07/2021,Employment Agency Staff Costs,DDaT Change Activities,Alexander Mann Solutions Limited,6008662,272.70,Employment Agency Staff Costs,Programme
HM Land Registry,HM Land Registry,26/07/2021,Employment Agency Staff Costs,DDaT Change Activities,Alexander Mann Solutions Limited,6008662,"2,304.55",Employment Agency Staff Costs,Programme
HM Land Registry,HM Land Registry,26/07/2021,Employment Agency Staff Costs,DDaT Change Activities,Alexander Mann Solutions Limited,6008662,460.91,Employment Agency Staff Costs,Programme
HM Land Registry,HM Land Registry,26/07/2021,Employment Agency Staff Costs,DDaT Change Activities,Alexander Mann Solutions Limited,6008662,"3,677.05",Employment Agency Staff Costs,Programme
HM Land Registry,HM Land Registry,26/07/2021,Employment Agency Staff Costs,DDaT Change Activities,Alexander Mann Solutions Limited,6008662,735.41,Employment Agency Staff Costs,Programme
HM Land Registry,HM Land Registry,26/07/2021,Employment Agency Staff Costs,DDaT Change Activities,Alexander Mann Solutions Limited,6008662,"2,887.75",Employment Agency Staff Costs,Programme
HM Land Registry,HM Land Registry,26/07/2021,Employment Agency Staff Costs,DDaT Change Activities,Alexander Mann Solutions Limited,6008662,577.55,Employment Agency Staff Costs,Programme
HM Land Registry,HM Land Registry,26/07/2021,Employment Agency Staff Costs,Finance,Alexander Mann Solutions Limited,6008662,"1,554.16",Employment Agency Staff Costs,Programme
HM Land Registry,HM Land Registry,26/07/2021,Employment Agency Staff Costs,Finance,Alexander Mann Solutions Limited,6008662,310.83,Employment Agency Staff Costs,Programme
HM Land Registry,HM Land Registry,26/07/2021,Employment Agency Staff Costs,DDaT Change Activities,Alexander Mann Solutions Limited,6008662,"3,150.30",Employment Agency Staff Costs,Programme
HM Land Registry,HM Land Registry,26/07/2021,Employment Agency Staff Costs,DDaT Change Activities,Alexander Mann Solutions Limited,6008662,630.06,Employment Agency Staff Costs,Programme
HM Land Registry,HM Land Registry,26/07/2021,Employment Agency Staff Costs,Finance,Alexander Mann Solutions Limited,6008662,"2,403.18",Employment Agency Staff Costs,Programme
HM Land Registry,HM Land Registry,26/07/2021,Employment Agency Staff Costs,DDaT Change Activities,Alexander Mann Solutions Limited,6008662,589.57,Employment Agency Staff Costs,Programme
HM Land Registry,HM Land Registry,26/07/2021,Employment Agency Staff Costs,Finance,Alexander Mann Solutions Limited,6008662,480.64,Employment Agency Staff Costs,Programme
HM Land Registry,HM Land Registry,26/07/2021,Employment Agency Staff Costs,DDaT Change Activities,Alexander Mann Solutions Limited,6008662,117.91,Employment Agency Staff Costs,Programme
HM Land Registry,HM Land Registry,26/07/2021,Employment Agency Staff Costs,Operations Change Activities,Alexander Mann Solutions Limited,6008662,"2,100.20",Employment Agency Staff Costs,Programme
HM Land Registry,HM Land Registry,26/07/2021,Employment Agency Staff Costs,Operations Change Activities,Alexander Mann Solutions Limited,6008662,420.04,Employment Agency Staff Costs,Programme
HM Land Registry,HM Land Registry,26/07/2021,Employment Agency Staff Costs,Operations Change Activities,Alexander Mann Solutions Limited,6008662,"2,520.24",Employment Agency Staff Costs,Programme
HM Land Registry,HM Land Registry,26/07/2021,Employment Agency Staff Costs,Operations Change Activities,Alexander Mann Solutions Limited,6008662,504.05,Employment Agency Staff Costs,Programme
HM Land Registry,HM Land Registry,29/07/2021,Software as a Service (Cloud),DDaT Operations,Amazon Web Services Inc,64796,"2,446.21",Software as a Service (Cloud),Programme
HM Land Registry,HM Land Registry,29/07/2021,Software as a Service (Cloud),DDaT Change Activities,Amazon Web Services Inc,64796,"40,289.99",Software as a Service (Cloud),Programme
HM Land Registry,HM Land Registry,29/07/2021,Software as a Service (Cloud),Transformation Change Activities,Amazon Web Services Inc,64796,"36,241.41",Software as a Service (Cloud),Programme
HM Land Registry,HM Land Registry,29/07/2021,Software as a Service (Cloud),DDaT Change Activities,Amazon Web Services Inc,64796,"2,483.14",Software as a Service (Cloud),Programme
HM Land Registry,HM Land Registry,07/07/2021,Professional Services,Operations Change Activities,Baringa Partners LLP,6008489,"101,680.00",Professional Services,Programme
HM Land Registry,HM Land Registry,07/07/2021,Professional Services,Operations Change Activities,Baringa Partners LLP,6008489,"20,336.00",Professional Services,Programme
HM Land Registry,HM Land Registry,07/07/2021,Professional Services,Operations Change Activities,Baringa Partners LLP,6008489,"108,825.00",Professional Services,Programme
HM Land Registry,HM Land Registry,07/07/2021,Professional Services,Operations Change Activities,Baringa Partners LLP,6008489,"21,765.00",Professional Services,Programme
HM Land Registry,HM Land Registry,21/07/2021,Professional Services,Operations Change Activities,Baringa Partners LLP,6008613,"108,825.00",Professional Services,Programme
HM Land Registry,HM Land Registry,21/07/2021,Professional Services,Operations Change Activities,Baringa Partners LLP,6008613,"21,765.00",Professional Services,Programme
HM Land Registry,HM Land Registry,21/07/2021,Professional Services,Operations Change Activities,Baringa Partners LLP,6008613,"159,355.00",Professional Services,Programme
HM Land Registry,HM Land Registry,21/07/2021,Professional Services,Operations Change Activities,Baringa Partners LLP,6008613,"31,871.00",Professional Services,Programme
HM Land Registry,HM Land Registry,21/07/2021,LLC Transition Payments to Local Authorities,Transformation Change Activities,Blackpool Borough Council,6008614,"75,000.00",LLC Transition Payments to Local Authorities,Programme
HM Land Registry,HM Land Registry,21/07/2021,LLC Transition Payments to Local Authorities,Transformation Change Activities,Blackpool Borough Council,6008614,"15,000.00",LLC Transition Payments to Local Authorities,Programme
HM Land Registry,HM Land Registry,19/07/2021,Major Property Maintenance Projects,Facilities,Borras Construction Ltd,6008590,"53,089.22",Major Property Maintenance Projects,Programme
HM Land Registry,HM Land Registry,19/07/2021,Major Property Maintenance Projects,Facilities,Borras Construction Ltd,6008590,"10,617.84",Major Property Maintenance Projects,Programme
HM Land Registry,HM Land Registry,28/07/2021,Telephone Costs,DDaT Service Management,British Telecommunications Plc,6008675,"20,756.44",Telephone Costs,Programme
HM Land Registry,HM Land Registry,28/07/2021,Data Network Lines,DDaT Service Management,British Telecommunications Plc,6008675,"31,711.50",Data Network Lines,Programme
HM Land Registry,HM Land Registry,28/07/2021,Telephone Costs,DDaT Service Management,British Telecommunications Plc,6008675,"4,151.28",Telephone Costs,Programme
HM Land Registry,HM Land Registry,01/07/2021,Professional Services,Risk and Assurance,Cabinet Office,6008454,"100,000.00",Professional Services,Programme
HM Land Registry,HM Land Registry,01/07/2021,Professional Services,Risk and Assurance,Cabinet Office,6008454,"20,000.00",Professional Services,Programme
HM Land Registry,HM Land Registry,21/07/2021,National Recruitment,HR Operations,Cabinet Office,6008616,"27,104.00",National Recruitment,Programme
HM Land Registry,HM Land Registry,12/07/2021,LLC Transition Payments to Local Authorities,Transformation Change Activities,Carlisle City Council,6008529,"15,000.00",LLC Transition Payments to Local Authorities,Programme
HM Land Registry,HM Land Registry,12/07/2021,LLC Transition Payments to Local Authorities,Transformation Change Activities,Carlisle City Council,6008529,"75,000.00",LLC Transition Payments to Local Authorities,Programme
HM Land Registry,HM Land Registry,22/07/2021,Computer Equipment Purchases <1000,DDaT Change Activities,CDW Limited,6008654,"2,404.26",Computer Equipment Purchases <1000,Programme
HM Land Registry,HM Land Registry,22/07/2021,Computer Equipment Purchases <1000,DDaT Change Activities,CDW Limited,6008654,480.85,Computer Equipment Purchases <1000,Programme
HM Land Registry,HM Land Registry,22/07/2021,Computer Equipment Purchases <1000,DDaT Change Activities,CDW Limited,6008654,"1,138.86",Computer Equipment Purchases <1000,Programme
HM Land Registry,HM Land Registry,22/07/2021,Computer Equipment Purchases <1000,DDaT Change Activities,CDW Limited,6008654,227.77,Computer Equipment Purchases <1000,Programme
HM Land Registry,HM Land Registry,22/07/2021,Computer Equipment Purchases <1000,DDaT Change Activities,CDW Limited,6008654,843.60,Computer Equipment Purchases <1000,Programme
HM Land Registry,HM Land Registry,22/07/2021,Computer Equipment Purchases <1000,DDaT Change Activities,CDW Limited,6008654,168.72,Computer Equipment Purchases <1000,Programme
HM Land Registry,HM Land Registry,22/07/2021,Computer Equipment Purchases <1000,DDaT Change Activities,CDW Limited,6008654,"3,515.00",Computer Equipment Purchases <1000,Programme
HM Land Registry,HM Land Registry,22/07/2021,Computer Equipment Purchases <1000,DDaT Change Activities,CDW Limited,6008654,703.00,Computer Equipment Purchases <1000,Programme
HM Land Registry,HM Land Registry,22/07/2021,Computer Equipment Purchases <1000,DDaT Change Activities,CDW Limited,6008654,"2,291.78",Computer Equipment Purchases <1000,Programme
HM Land Registry,HM Land Registry,22/07/2021,Computer Equipment Purchases <1000,DDaT Change Activities,CDW Limited,6008654,458.36,Computer Equipment Purchases <1000,Programme
HM Land Registry,HM Land Registry,22/07/2021,Computer Equipment Purchases <1000,DDaT Change Activities,CDW Limited,6008654,"1,799.68",Computer Equipment Purchases <1000,Programme
HM Land Registry,HM Land Registry,22/07/2021,Computer Equipment Purchases <1000,DDaT Change Activities,CDW Limited,6008654,359.94,Computer Equipment Purchases <1000,Programme
HM Land Registry,HM Land Registry,22/07/2021,Computer Equipment Purchases <1000,DDaT Change Activities,CDW Limited,6008654,"1,729.38",Computer Equipment Purchases <1000,Programme
HM Land Registry,HM Land Registry,22/07/2021,Computer Equipment Purchases <1000,DDaT Change Activities,CDW Limited,6008654,345.88,Computer Equipment Purchases <1000,Programme
HM Land Registry,HM Land Registry,22/07/2021,Computer Equipment Purchases <1000,DDaT Change Activities,CDW Limited,6008654,"1,377.88",Computer Equipment Purchases <1000,Programme
HM Land Registry,HM Land Registry,22/07/2021,Computer Equipment Purchases <1000,DDaT Change Activities,CDW Limited,6008654,275.58,Computer Equipment Purchases <1000,Programme
HM Land Registry,HM Land Registry,22/07/2021,Computer Equipment Purchases <1000,DDaT Change Activities,CDW Limited,6008654,"2,221.48",Computer Equipment Purchases <1000,Programme
HM Land Registry,HM Land Registry,22/07/2021,Computer Equipment Purchases <1000,DDaT Change Activities,CDW Limited,6008654,444.30,Computer Equipment Purchases <1000,Programme
HM Land Registry,HM Land Registry,22/07/2021,Computer Equipment Purchases <1000,DDaT Change Activities,CDW Limited,6008654,"1,181.04",Computer Equipment Purchases <1000,Programme
HM Land Registry,HM Land Registry,22/07/2021,Computer Equipment Purchases <1000,DDaT Change Activities,CDW Limited,6008654,236.21,Computer Equipment Purchases <1000,Programme
HM Land Registry,HM Land Registry,22/07/2021,Computer Equipment Purchases <1000,DDaT Change Activities,CDW Limited,6008654,"1,715.32",Computer Equipment Purchases <1000,Programme
HM Land Registry,HM Land Registry,22/07/2021,Computer Equipment Purchases <1000,DDaT Change Activities,CDW Limited,6008654,343.06,Computer Equipment Purchases <1000,Programme
HM Land Registry,HM Land Registry,22/07/2021,Computer Equipment Purchases <1000,DDaT Change Activities,CDW Limited,6008654,"3,754.02",Computer Equipment Purchases <1000,Programme
HM Land Registry,HM Land Registry,22/07/2021,Computer Equipment Purchases <1000,DDaT Change Activities,CDW Limited,6008654,750.80,Computer Equipment Purchases <1000,Programme
HM Land Registry,HM Land Registry,22/07/2021,Computer Equipment Purchases <1000,DDaT Change Activities,CDW Limited,6008654,"9,434.26",Computer Equipment Purchases <1000,Programme
HM Land Registry,HM Land Registry,22/07/2021,Computer Equipment Purchases <1000,DDaT Change Activities,CDW Limited,6008654,83.86,Computer Equipment Purchases <1000,Programme
HM Land Registry,HM Land Registry,22/07/2021,Computer Equipment Purchases <1000,DDaT Change Activities,CDW Limited,6008654,"1,903.62",Computer Equipment Purchases <1000,Programme
HM Land Registry,HM Land Registry,12/07/2021,Payroll Costs,HR Operations,CGI IT UK Limited,6008530,"28,747.71",Payroll Costs,Programme
HM Land Registry,HM Land Registry,12/07/2021,LLC Transition Payments to Local Authorities,Transformation Change Activities,City of London Corporation,6008531,"60,000.00",LLC Transition Payments to Local Authorities,Programme
HM Land Registry,HM Land Registry,12/07/2021,LLC Transition Payments to Local Authorities,Transformation Change Activities,City of London Corporation,6008531,"12,000.00",LLC Transition Payments to Local Authorities,Programme
HM Land Registry,HM Land Registry,12/07/2021,LLC Transition Payments to Local Authorities,Transformation Change Activities,Council of the Isles of Scilly,6008533,"60,000.00",LLC Transition Payments to Local Authorities,Programme
HM Land Registry,HM Land Registry,12/07/2021,LLC Transition Payments to Local Authorities,Transformation Change Activities,Council of the Isles of Scilly,6008533,"12,000.00",LLC Transition Payments to Local Authorities,Programme
HM Land Registry,HM Land Registry,07/07/2021,Valuation Charges,Finance,Cushman & Wakefield Debenham Tie Leung Ltd,6008493,"26,250.00",Valuation Charges,Programme
HM Land Registry,HM Land Registry,07/07/2021,Valuation Charges,Finance,Cushman & Wakefield Debenham Tie Leung Ltd,6008493,"20,000.00",Valuation Charges,Programme
HM Land Registry,HM Land Registry,29/07/2021,Rates Payable,Facilities & Property Asset Management,Durham County Council,6008702,"29,696.00",Rates Payable,Programme
HM Land Registry,HM Land Registry,29/07/2021,Rates Payable,Facilities & Property Asset Management,Durham County Council,6008702,"1,297.00",Rates Payable,Programme
HM Land Registry,HM Land Registry,13/07/2021,LLC Transition Payments to Local Authorities,Transformation Change Activities,East Lindsey District Council,6008547,"90,000.00",LLC Transition Payments to Local Authorities,Programme
HM Land Registry,HM Land Registry,13/07/2021,LLC Transition Payments to Local Authorities,Transformation Change Activities,East Lindsey District Council,6008547,"18,000.00",LLC Transition Payments to Local Authorities,Programme
HM Land Registry,HM Land Registry,30/07/2021,Electricity,Facilities,EDF Energy,65046,"7,225.93",Electricity,Programme
HM Land Registry,HM Land Registry,30/07/2021,Electricity,Facilities,EDF Energy,65046,"30,416.01",Electricity,Programme
HM Land Registry,HM Land Registry,30/07/2021,Electricity,Facilities,EDF Energy,65046,"4,339.59",Electricity,Programme
HM Land Registry,HM Land Registry,30/07/2021,Electricity,Facilities,EDF Energy,65046,"4,926.57",Electricity,Programme
HM Land Registry,HM Land Registry,30/07/2021,Electricity,Facilities,EDF Energy,65046,"3,977.41",Electricity,Programme
HM Land Registry,HM Land Registry,30/07/2021,Electricity,Facilities,EDF Energy,65046,"28,479.13",Electricity,Programme
HM Land Registry,HM Land Registry,30/07/2021,Electricity,Facilities,EDF Energy,65046,"3,169.40",Electricity,Programme
HM Land Registry,HM Land Registry,30/07/2021,Electricity,Facilities,EDF Energy,65046,"3,372.73",Electricity,Programme
HM Land Registry,HM Land Registry,30/07/2021,Electricity,Facilities,EDF Energy,65046,"3,785.70",Electricity,Programme
HM Land Registry,HM Land Registry,30/07/2021,Electricity,Facilities,EDF Energy,65046,"3,770.72",Electricity,Programme
HM Land Registry,HM Land Registry,30/07/2021,Electricity,Facilities,EDF Energy,65046,"2,272.80",Electricity,Programme
HM Land Registry,HM Land Registry,30/07/2021,Electricity,Facilities,EDF Energy,65046,"6,461.17",Electricity,Programme
HM Land Registry,HM Land Registry,30/07/2021,Electricity,Facilities,EDF Energy,65046,"5,276.58",Electricity,Programme
HM Land Registry,HM Land Registry,30/07/2021,Electricity,Facilities,EDF Energy,65046,"3,019.65",Electricity,Programme
HM Land Registry,HM Land Registry,30/07/2021,Electricity,Facilities,EDF Energy,65046,"-1,352.56",Electricity,Programme
HM Land Registry,HM Land Registry,19/07/2021,Computer Equipment Non HP Licences,DDaT Operations,Experian Ltd,6008594,"24,888.94",Computer Equipment Non HP Licences,Programme
HM Land Registry,HM Land Registry,19/07/2021,Computer Equipment Non HP Licences,DDaT Operations,Experian Ltd,6008594,"4,977.79",Computer Equipment Non HP Licences,Programme
HM Land Registry,HM Land Registry,07/07/2021,Professional Services,DDaT Change Activities,FDM Group Limited,6008497,"4,320.00",Professional Services,Programme
HM Land Registry,HM Land Registry,07/07/2021,Professional Services,DDaT Change Activities,FDM Group Limited,6008497,864.00,Professional Services,Programme
HM Land Registry,HM Land Registry,07/07/2021,Professional Services,DDaT Change Activities,FDM Group Limited,6008497,"2,700.00",Professional Services,Programme
HM Land Registry,HM Land Registry,07/07/2021,Professional Services,DDaT Change Activities,FDM Group Limited,6008497,540.00,Professional Services,Programme
HM Land Registry,HM Land Registry,07/07/2021,Professional Services,DDaT Change Activities,FDM Group Limited,6008497,"3,900.00",Professional Services,Programme
HM Land Registry,HM Land Registry,07/07/2021,Professional Services,DDaT Change Activities,FDM Group Limited,6008497,780.00,Professional Services,Programme
HM Land Registry,HM Land Registry,07/07/2021,Professional Services,Operations Change Activities,FDM Group Limited,6008497,"6,600.00",Professional Services,Programme
HM Land Registry,HM Land Registry,07/07/2021,Professional Services,Operations Change Activities,FDM Group Limited,6008497,"1,320.00",Professional Services,Programme
HM Land Registry,HM Land Registry,07/07/2021,Professional Services,DDaT Change Activities,FDM Group Limited,6008497,"5,940.00",Professional Services,Programme
HM Land Registry,HM Land Registry,07/07/2021,Professional Services,DDaT Change Activities,FDM Group Limited,6008497,"1,188.00",Professional Services,Programme
HM Land Registry,HM Land Registry,07/07/2021,Professional Services,DDaT Change Activities,FDM Group Limited,6008497,"2,400.00",Professional Services,Programme
HM Land Registry,HM Land Registry,07/07/2021,Professional Services,DDaT Change Activities,FDM Group Limited,6008497,480.00,Professional Services,Programme
HM Land Registry,HM Land Registry,07/07/2021,Professional Services,DDaT Change Activities,FDM Group Limited,6008497,"3,900.00",Professional Services,Programme
HM Land Registry,HM Land Registry,07/07/2021,Professional Services,DDaT Change Activities,FDM Group Limited,6008497,780.00,Professional Services,Programme
HM Land Registry,HM Land Registry,07/07/2021,Professional Services,DDaT Change Activities,FDM Group Limited,6008497,"7,525.00",Professional Services,Programme
HM Land Registry,HM Land Registry,07/07/2021,Professional Services,DDaT Change Activities,FDM Group Limited,6008497,"1,505.00",Professional Services,Programme
HM Land Registry,HM Land Registry,07/07/2021,Professional Services,DDaT Change Activities,FDM Group Limited,6008497,"2,400.00",Professional Services,Programme
HM Land Registry,HM Land Registry,07/07/2021,Professional Services,DDaT Change Activities,FDM Group Limited,6008497,480.00,Professional Services,Programme
HM Land Registry,HM Land Registry,07/07/2021,Professional Services,DDaT Change Activities,FDM Group Limited,6008497,"5,400.00",Professional Services,Programme
HM Land Registry,HM Land Registry,07/07/2021,Professional Services,DDaT Change Activities,FDM Group Limited,6008497,"1,080.00",Professional Services,Programme
HM Land Registry,HM Land Registry,07/07/2021,Professional Services,Operations Change Activities,FDM Group Limited,6008497,"5,940.00",Professional Services,Programme
HM Land Registry,HM Land Registry,07/07/2021,Professional Services,Operations Change Activities,FDM Group Limited,6008497,"1,188.00",Professional Services,Programme
HM Land Registry,HM Land Registry,29/07/2021,Rates Payable,Facilities & Property Asset Management,Gloucester City Council,6008704,"30,208.00",Rates Payable,Programme
HM Land Registry,HM Land Registry,22/07/2021,Property Management; Other Fees,Facilities,Government Property Agency c/o Montagu Evans LLP,6008657,"2,650.00",Property Management; Other Fees,Programme
HM Land Registry,HM Land Registry,22/07/2021,Property Management; Other Fees,Facilities,Government Property Agency c/o Montagu Evans LLP,6008657,"2,650.00",Property Management; Other Fees,Programme
HM Land Registry,HM Land Registry,22/07/2021,Rent Payable,Facilities & Property Asset Management,Government Property Agency c/o Montagu Evans LLP,6008657,"93,019.75",Rent Payable,Programme
HM Land Registry,HM Land Registry,22/07/2021,Property Management; Other Fees,Facilities,Government Property Agency c/o Montagu Evans LLP,6008657,"2,650.00",Property Management; Other Fees,Programme
HM Land Registry,HM Land Registry,22/07/2021,Rent Payable,Facilities & Property Asset Management,Government Property Agency c/o Montagu Evans LLP,6008657,"123,276.25",Rent Payable,Programme
HM Land Registry,HM Land Registry,22/07/2021,Rent Payable,Facilities & Property Asset Management,Government Property Agency c/o Montagu Evans LLP,6008657,"106,693.25",Rent Payable,Programme
HM Land Registry,HM Land Registry,22/07/2021,Property Management; Other Fees,Facilities,Government Property Agency c/o Montagu Evans LLP,6008657,"2,650.00",Property Management; Other Fees,Programme
HM Land Registry,HM Land Registry,22/07/2021,Rent Payable,Facilities & Property Asset Management,Government Property Agency c/o Montagu Evans LLP,6008657,"11,518.00",Rent Payable,Programme
HM Land Registry,HM Land Registry,22/07/2021,Property Management; Other Fees,Facilities,Government Property Agency c/o Montagu Evans LLP,6008657,"2,650.00",Property Management; Other Fees,Programme
HM Land Registry,HM Land Registry,22/07/2021,Rent Payable,Facilities & Property Asset Management,Government Property Agency c/o Montagu Evans LLP,6008657,"85,204.25",Rent Payable,Programme
HM Land Registry,HM Land Registry,22/07/2021,Rent Payable,Facilities & Property Asset Management,Government Property Agency c/o Montagu Evans LLP,6008657,"90,147.75",Rent Payable,Programme
HM Land Registry,HM Land Registry,22/07/2021,Property Management; Other Fees,Facilities,Government Property Agency c/o Montagu Evans LLP,6008657,"2,650.00",Property Management; Other Fees,Programme
HM Land Registry,HM Land Registry,22/07/2021,Rent Payable,Facilities & Property Asset Management,Government Property Agency c/o Montagu Evans LLP,6008657,"111,896.00",Rent Payable,Programme
HM Land Registry,HM Land Registry,22/07/2021,Rent Payable,Facilities & Property Asset Management,Government Property Agency c/o Montagu Evans LLP,6008657,"106,168.75",Rent Payable,Programme
HM Land Registry,HM Land Registry,22/07/2021,Rent Payable,Facilities & Property Asset Management,Government Property Agency c/o Montagu Evans LLP,6008657,"63,218.25",Rent Payable,Programme
HM Land Registry,HM Land Registry,22/07/2021,Property Management; Other Fees,Facilities,Government Property Agency c/o Montagu Evans LLP,6008657,"2,650.00",Property Management; Other Fees,Programme
HM Land Registry,HM Land Registry,22/07/2021,Property Management; Other Fees,Facilities,Government Property Agency c/o Montagu Evans LLP,6008657,"2,650.00",Property Management; Other Fees,Programme
HM Land Registry,HM Land Registry,22/07/2021,Property Management; Other Fees,Facilities,Government Property Agency c/o Montagu Evans LLP,6008657,"2,650.00",Property Management; Other Fees,Programme
HM Land Registry,HM Land Registry,22/07/2021,Rent Payable,Facilities & Property Asset Management,Government Property Agency c/o Montagu Evans LLP,6008657,"57,770.25",Rent Payable,Programme
HM Land Registry,HM Land Registry,22/07/2021,Property Management; Other Fees,Facilities,Government Property Agency c/o Montagu Evans LLP,6008657,"2,650.00",Property Management; Other Fees,Programme
HM Land Registry,HM Land Registry,22/07/2021,Property Management; Other Fees,Facilities,Government Property Agency c/o Montagu Evans LLP,6008657,"2,650.00",Property Management; Other Fees,Programme
HM Land Registry,HM Land Registry,22/07/2021,Rent Payable,Facilities & Property Asset Management,Government Property Agency c/o Montagu Evans LLP,6008657,"130,810.00",Rent Payable,Programme
HM Land Registry,HM Land Registry,22/07/2021,Rent Payable,Facilities & Property Asset Management,Government Property Agency c/o Montagu Evans LLP,6008657,"123,031.25",Rent Payable,Programme
HM Land Registry,HM Land Registry,22/07/2021,Rent Payable,Facilities & Property Asset Management,Government Property Agency c/o Montagu Evans LLP,6008657,"239,604.75",Rent Payable,Programme
HM Land Registry,HM Land Registry,22/07/2021,Property Management; Other Fees,Facilities,Government Property Agency c/o Montagu Evans LLP,6008657,"2,650.00",Property Management; Other Fees,Programme
HM Land Registry,HM Land Registry,22/07/2021,Software as a Service (Cloud),DDaT Operations,Government Property Agency c/o Montagu Evans LLP,6008657,"1,800.00",Software as a Service (Cloud),Programme
HM Land Registry,HM Land Registry,22/07/2021,Property Management; Other Fees,Facilities,Government Property Agency c/o Montagu Evans LLP,6008657,"2,650.00",Property Management; Other Fees,Programme
HM Land Registry,HM Land Registry,21/07/2021,Professional Services,Transformation Change Activities,Idox Software Ltd,6008627,"15,360.00",Professional Services,Programme
HM Land Registry,HM Land Registry,21/07/2021,Professional Services,Transformation Change Activities,Idox Software Ltd,6008627,"3,072.00",Professional Services,Programme
HM Land Registry,HM Land Registry,21/07/2021,Assets in the Course of Construction,Transformation Change Activities,Idox Software Ltd,6008627,"8,550.00",Assets in the Course of Construction,Programme
HM Land Registry,HM Land Registry,21/07/2021,Assets in the Course of Construction,Transformation Change Activities,Idox Software Ltd,6008627,"1,710.00",Assets in the Course of Construction,Programme
HM Land Registry,HM Land Registry,22/07/2021,Consultancy IT Implement,Finance,Infomentum Ltd,6008658,"56,500.00",Consultancy IT Implement,Programme
HM Land Registry,HM Land Registry,22/07/2021,Consultancy IT Implement,Finance,Infomentum Ltd,6008658,"11,300.00",Consultancy IT Implement,Programme
HM Land Registry,HM Land Registry,21/07/2021,Data Network Lines,DDaT Service Management,Interoute Networks Ltd,6008628,890.00,Data Network Lines,Programme
HM Land Registry,HM Land Registry,21/07/2021,Data Network Lines,DDaT Service Management,Interoute Networks Ltd,6008628,901.66,Data Network Lines,Programme
HM Land Registry,HM Land Registry,21/07/2021,Data Network Lines,DDaT Service Management,Interoute Networks Ltd,6008628,"20,000.00",Data Network Lines,Programme
HM Land Registry,HM Land Registry,21/07/2021,Data Network Lines,DDaT Service Management,Interoute Networks Ltd,6008628,"1,618.00",Data Network Lines,Programme
HM Land Registry,HM Land Registry,21/07/2021,Data Network Lines,DDaT Service Management,Interoute Networks Ltd,6008628,901.66,Data Network Lines,Programme
HM Land Registry,HM Land Registry,21/07/2021,Data Network Lines,DDaT Service Management,Interoute Networks Ltd,6008628,"20,000.00",Data Network Lines,Programme
HM Land Registry,HM Land Registry,21/07/2021,Data Network Lines,DDaT Service Management,Interoute Networks Ltd,6008628,"1,618.00",Data Network Lines,Programme
HM Land Registry,HM Land Registry,21/07/2021,Data Network Lines,DDaT Service Management,Interoute Networks Ltd,6008628,890.00,Data Network Lines,Programme
HM Land Registry,HM Land Registry,21/07/2021,Data Network Lines,DDaT Service Management,Interoute Networks Ltd,6008628,"19,757.04",Data Network Lines,Programme
HM Land Registry,HM Land Registry,28/07/2021,Facilities Quoted & Ad-hoc Works,Facilities,ISS Mediclean Ltd,6008686,41.55,Facilities Quoted & Ad-hoc Works,Programme
HM Land Registry,HM Land Registry,28/07/2021,Facilities Quoted & Ad-hoc Works,Facilities,ISS Mediclean Ltd,6008686,459.82,Facilities Quoted & Ad-hoc Works,Programme
HM Land Registry,HM Land Registry,28/07/2021,Facilities Quoted & Ad-hoc Works,Facilities,ISS Mediclean Ltd,6008686,"5,400.73",Facilities Quoted & Ad-hoc Works,Programme
HM Land Registry,HM Land Registry,28/07/2021,Facilities Quoted & Ad-hoc Works,Facilities,ISS Mediclean Ltd,6008686,54.95,Facilities Quoted & Ad-hoc Works,Programme
HM Land Registry,HM Land Registry,28/07/2021,Facilities Quoted & Ad-hoc Works,Facilities,ISS Mediclean Ltd,6008686,"4,342.52",Facilities Quoted & Ad-hoc Works,Programme
HM Land Registry,HM Land Registry,28/07/2021,Facilities Quoted & Ad-hoc Works,Facilities,ISS Mediclean Ltd,6008686,"7,936.97",Facilities Quoted & Ad-hoc Works,Programme
HM Land Registry,HM Land Registry,28/07/2021,Facilities Quoted & Ad-hoc Works,Facilities,ISS Mediclean Ltd,6008686,228.07,Facilities Quoted & Ad-hoc Works,Programme
HM Land Registry,HM Land Registry,28/07/2021,Facilities Quoted & Ad-hoc Works,Facilities,ISS Mediclean Ltd,6008686,"1,014.86",Facilities Quoted & Ad-hoc Works,Programme
HM Land Registry,HM Land Registry,28/07/2021,Facilities Quoted & Ad-hoc Works,Facilities,ISS Mediclean Ltd,6008686,"4,979.03",Facilities Quoted & Ad-hoc Works,Programme
HM Land Registry,HM Land Registry,28/07/2021,Facilities Quoted & Ad-hoc Works,Facilities,ISS Mediclean Ltd,6008686,"1,564.98",Facilities Quoted & Ad-hoc Works,Programme
HM Land Registry,HM Land Registry,28/07/2021,Facilities Quoted & Ad-hoc Works,Facilities,ISS Mediclean Ltd,6008686,260.00,Facilities Quoted & Ad-hoc Works,Programme
HM Land Registry,HM Land Registry,28/07/2021,Facilities Quoted & Ad-hoc Works,Facilities,ISS Mediclean Ltd,6008686,798.64,Facilities Quoted & Ad-hoc Works,Programme
HM Land Registry,HM Land Registry,28/07/2021,Facilities Quoted & Ad-hoc Works,Facilities,ISS Mediclean Ltd,6008686,18.57,Facilities Quoted & Ad-hoc Works,Programme
HM Land Registry,HM Land Registry,28/07/2021,Facilities Quoted & Ad-hoc Works,Facilities,ISS Mediclean Ltd,6008686,94.30,Facilities Quoted & Ad-hoc Works,Programme
HM Land Registry,HM Land Registry,28/07/2021,Facilities Quoted & Ad-hoc Works,Facilities,ISS Mediclean Ltd,6008686,36.34,Facilities Quoted & Ad-hoc Works,Programme
HM Land Registry,HM Land Registry,28/07/2021,Facilities Quoted & Ad-hoc Works,Facilities,ISS Mediclean Ltd,6008686,902.18,Facilities Quoted & Ad-hoc Works,Programme
HM Land Registry,HM Land Registry,28/07/2021,Facilities Quoted & Ad-hoc Works,Facilities,ISS Mediclean Ltd,6008686,"4,352.75",Facilities Quoted & Ad-hoc Works,Programme
HM Land Registry,HM Land Registry,28/07/2021,Facilities Quoted & Ad-hoc Works,Facilities,ISS Mediclean Ltd,6008686,41.62,Facilities Quoted & Ad-hoc Works,Programme
HM Land Registry,HM Land Registry,28/07/2021,Facilities Quoted & Ad-hoc Works,Facilities,ISS Mediclean Ltd,6008686,"7,318.17",Facilities Quoted & Ad-hoc Works,Programme
HM Land Registry,HM Land Registry,28/07/2021,Facilities Quoted & Ad-hoc Works,Facilities,ISS Mediclean Ltd,6008686,"7,612.49",Facilities Quoted & Ad-hoc Works,Programme
HM Land Registry,HM Land Registry,28/07/2021,Facilities Quoted & Ad-hoc Works,Facilities,ISS Mediclean Ltd,6008686,246.89,Facilities Quoted & Ad-hoc Works,Programme
HM Land Registry,HM Land Registry,28/07/2021,Facilities Quoted & Ad-hoc Works,Facilities,ISS Mediclean Ltd,6008686,325.89,Facilities Quoted & Ad-hoc Works,Programme
HM Land Registry,HM Land Registry,28/07/2021,Facilities Quoted & Ad-hoc Works,Facilities,ISS Mediclean Ltd,6008686,"4,676.64",Facilities Quoted & Ad-hoc Works,Programme
HM Land Registry,HM Land Registry,28/07/2021,Facilities Quoted & Ad-hoc Works,Facilities,ISS Mediclean Ltd,6008686,"1,709.64",Facilities Quoted & Ad-hoc Works,Programme
HM Land Registry,HM Land Registry,28/07/2021,Facilities Quoted & Ad-hoc Works,Facilities,ISS Mediclean Ltd,6008686,229.81,Facilities Quoted & Ad-hoc Works,Programme
HM Land Registry,HM Land Registry,28/07/2021,Facilities Quoted & Ad-hoc Works,Facilities,ISS Mediclean Ltd,6008686,46.89,Facilities Quoted & Ad-hoc Works,Programme
HM Land Registry,HM Land Registry,28/07/2021,Facilities Quoted & Ad-hoc Works,Facilities,ISS Mediclean Ltd,6008686,498.78,Facilities Quoted & Ad-hoc Works,Programme
HM Land Registry,HM Land Registry,28/07/2021,Facilities Quoted & Ad-hoc Works,Facilities,ISS Mediclean Ltd,6008686,"7,550.89",Facilities Quoted & Ad-hoc Works,Programme
HM Land Registry,HM Land Registry,28/07/2021,Facilities Quoted & Ad-hoc Works,Facilities,ISS Mediclean Ltd,6008686,81.72,Facilities Quoted & Ad-hoc Works,Programme
HM Land Registry,HM Land Registry,28/07/2021,Facilities Quoted & Ad-hoc Works,Facilities,ISS Mediclean Ltd,6008686,"6,488.15",Facilities Quoted & Ad-hoc Works,Programme
HM Land Registry,HM Land Registry,28/07/2021,Facilities Quoted & Ad-hoc Works,Facilities,ISS Mediclean Ltd,6008686,"10,561.05",Facilities Quoted & Ad-hoc Works,Programme
HM Land Registry,HM Land Registry,28/07/2021,Facilities Quoted & Ad-hoc Works,Facilities,ISS Mediclean Ltd,6008686,321.02,Facilities Quoted & Ad-hoc Works,Programme
HM Land Registry,HM Land Registry,28/07/2021,Facilities Quoted & Ad-hoc Works,Facilities,ISS Mediclean Ltd,6008686,"1,528.94",Facilities Quoted & Ad-hoc Works,Programme
HM Land Registry,HM Land Registry,28/07/2021,Facilities Quoted & Ad-hoc Works,Facilities,ISS Mediclean Ltd,6008686,"8,555.15",Facilities Quoted & Ad-hoc Works,Programme
HM Land Registry,HM Land Registry,28/07/2021,Facilities Quoted & Ad-hoc Works,Facilities,ISS Mediclean Ltd,6008686,974.49,Facilities Quoted & Ad-hoc Works,Programme
HM Land Registry,HM Land Registry,28/07/2021,Facilities Quoted & Ad-hoc Works,Facilities,ISS Mediclean Ltd,6008686,245.43,Facilities Quoted & Ad-hoc Works,Programme
HM Land Registry,HM Land Registry,28/07/2021,Facilities Quoted & Ad-hoc Works,Facilities,ISS Mediclean Ltd,6008686,36.17,Facilities Quoted & Ad-hoc Works,Programme
HM Land Registry,HM Land Registry,28/07/2021,Facilities Quoted & Ad-hoc Works,Facilities,ISS Mediclean Ltd,6008686,269.75,Facilities Quoted & Ad-hoc Works,Programme
HM Land Registry,HM Land Registry,28/07/2021,Facilities Quoted & Ad-hoc Works,Facilities,ISS Mediclean Ltd,6008686,"4,293.94",Facilities Quoted & Ad-hoc Works,Programme
HM Land Registry,HM Land Registry,28/07/2021,Facilities Quoted & Ad-hoc Works,Facilities,ISS Mediclean Ltd,6008686,54.95,Facilities Quoted & Ad-hoc Works,Programme
HM Land Registry,HM Land Registry,28/07/2021,Facilities Quoted & Ad-hoc Works,Facilities,ISS Mediclean Ltd,6008686,"5,570.73",Facilities Quoted & Ad-hoc Works,Programme
HM Land Registry,HM Land Registry,28/07/2021,Facilities Quoted & Ad-hoc Works,Facilities,ISS Mediclean Ltd,6008686,"7,009.25",Facilities Quoted & Ad-hoc Works,Programme
HM Land Registry,HM Land Registry,28/07/2021,Facilities Quoted & Ad-hoc Works,Facilities,ISS Mediclean Ltd,6008686,201.51,Facilities Quoted & Ad-hoc Works,Programme
HM Land Registry,HM Land Registry,28/07/2021,Facilities Quoted & Ad-hoc Works,Facilities,ISS Mediclean Ltd,6008686,"2,104.79",Facilities Quoted & Ad-hoc Works,Programme
HM Land Registry,HM Land Registry,28/07/2021,Facilities Quoted & Ad-hoc Works,Facilities,ISS Mediclean Ltd,6008686,"3,550.47",Facilities Quoted & Ad-hoc Works,Programme
HM Land Registry,HM Land Registry,28/07/2021,Facilities Quoted & Ad-hoc Works,Facilities,ISS Mediclean Ltd,6008686,"1,512.37",Facilities Quoted & Ad-hoc Works,Programme
HM Land Registry,HM Land Registry,28/07/2021,Facilities Quoted & Ad-hoc Works,Facilities,ISS Mediclean Ltd,6008686,148.12,Facilities Quoted & Ad-hoc Works,Programme
HM Land Registry,HM Land Registry,28/07/2021,Facilities Quoted & Ad-hoc Works,Facilities,ISS Mediclean Ltd,6008686,45.05,Facilities Quoted & Ad-hoc Works,Programme
HM Land Registry,HM Land Registry,28/07/2021,Facilities Quoted & Ad-hoc Works,Facilities,ISS Mediclean Ltd,6008686,477.71,Facilities Quoted & Ad-hoc Works,Programme
HM Land Registry,HM Land Registry,28/07/2021,Facilities Quoted & Ad-hoc Works,Facilities,ISS Mediclean Ltd,6008686,"8,398.33",Facilities Quoted & Ad-hoc Works,Programme
HM Land Registry,HM Land Registry,28/07/2021,Facilities Quoted & Ad-hoc Works,Facilities,ISS Mediclean Ltd,6008686,41.62,Facilities Quoted & Ad-hoc Works,Programme
HM Land Registry,HM Land Registry,28/07/2021,Facilities Quoted & Ad-hoc Works,Facilities,ISS Mediclean Ltd,6008686,"7,479.73",Facilities Quoted & Ad-hoc Works,Programme
HM Land Registry,HM Land Registry,28/07/2021,Facilities Quoted & Ad-hoc Works,Facilities,ISS Mediclean Ltd,6008686,"3,339.45",Facilities Quoted & Ad-hoc Works,Programme
HM Land Registry,HM Land Registry,28/07/2021,Facilities Quoted & Ad-hoc Works,Facilities,ISS Mediclean Ltd,6008686,247.73,Facilities Quoted & Ad-hoc Works,Programme
HM Land Registry,HM Land Registry,28/07/2021,Facilities Quoted & Ad-hoc Works,Facilities,ISS Mediclean Ltd,6008686,862.39,Facilities Quoted & Ad-hoc Works,Programme
HM Land Registry,HM Land Registry,28/07/2021,Facilities Quoted & Ad-hoc Works,Facilities,ISS Mediclean Ltd,6008686,"5,750.14",Facilities Quoted & Ad-hoc Works,Programme
HM Land Registry,HM Land Registry,28/07/2021,Facilities Quoted & Ad-hoc Works,Facilities,ISS Mediclean Ltd,6008686,"2,498.70",Facilities Quoted & Ad-hoc Works,Programme
HM Land Registry,HM Land Registry,28/07/2021,Facilities Quoted & Ad-hoc Works,Facilities,ISS Mediclean Ltd,6008686,191.19,Facilities Quoted & Ad-hoc Works,Programme
HM Land Registry,HM Land Registry,28/07/2021,Facilities Quoted & Ad-hoc Works,Facilities,ISS Mediclean Ltd,6008686,39.85,Facilities Quoted & Ad-hoc Works,Programme
HM Land Registry,HM Land Registry,28/07/2021,Facilities Quoted & Ad-hoc Works,Facilities,ISS Mediclean Ltd,6008686,322.52,Facilities Quoted & Ad-hoc Works,Programme
HM Land Registry,HM Land Registry,28/07/2021,Facilities Quoted & Ad-hoc Works,Facilities,ISS Mediclean Ltd,6008686,"4,646.02",Facilities Quoted & Ad-hoc Works,Programme
HM Land Registry,HM Land Registry,28/07/2021,Facilities Quoted & Ad-hoc Works,Facilities,ISS Mediclean Ltd,6008686,55.22,Facilities Quoted & Ad-hoc Works,Programme
HM Land Registry,HM Land Registry,28/07/2021,Facilities Quoted & Ad-hoc Works,Facilities,ISS Mediclean Ltd,6008686,"4,853.15",Facilities Quoted & Ad-hoc Works,Programme
HM Land Registry,HM Land Registry,28/07/2021,Facilities Quoted & Ad-hoc Works,Facilities,ISS Mediclean Ltd,6008686,"7,588.01",Facilities Quoted & Ad-hoc Works,Programme
HM Land Registry,HM Land Registry,28/07/2021,Facilities Quoted & Ad-hoc Works,Facilities,ISS Mediclean Ltd,6008686,214.85,Facilities Quoted & Ad-hoc Works,Programme
HM Land Registry,HM Land Registry,28/07/2021,Facilities Quoted & Ad-hoc Works,Facilities,ISS Mediclean Ltd,6008686,"1,045.56",Facilities Quoted & Ad-hoc Works,Programme
HM Land Registry,HM Land Registry,28/07/2021,Facilities Quoted & Ad-hoc Works,Facilities,ISS Mediclean Ltd,6008686,"5,384.69",Facilities Quoted & Ad-hoc Works,Programme
HM Land Registry,HM Land Registry,28/07/2021,Facilities Quoted & Ad-hoc Works,Facilities,ISS Mediclean Ltd,6008686,"2,202.80",Facilities Quoted & Ad-hoc Works,Programme
HM Land Registry,HM Land Registry,28/07/2021,Facilities Quoted & Ad-hoc Works,Facilities,ISS Mediclean Ltd,6008686,244.38,Facilities Quoted & Ad-hoc Works,Programme
HM Land Registry,HM Land Registry,28/07/2021,Facilities Quoted & Ad-hoc Works,Facilities,ISS Mediclean Ltd,6008686,29.19,Facilities Quoted & Ad-hoc Works,Programme
HM Land Registry,HM Land Registry,28/07/2021,Facilities Quoted & Ad-hoc Works,Facilities,ISS Mediclean Ltd,6008686,117.34,Facilities Quoted & Ad-hoc Works,Programme
HM Land Registry,HM Land Registry,28/07/2021,Facilities Quoted & Ad-hoc Works,Facilities,ISS Mediclean Ltd,6008686,574.20,Facilities Quoted & Ad-hoc Works,Programme
HM Land Registry,HM Land Registry,28/07/2021,Facilities Quoted & Ad-hoc Works,Facilities,ISS Mediclean Ltd,6008686,9.12,Facilities Quoted & Ad-hoc Works,Programme
HM Land Registry,HM Land Registry,28/07/2021,Facilities Quoted & Ad-hoc Works,Facilities,ISS Mediclean Ltd,6008686,38.93,Facilities Quoted & Ad-hoc Works,Programme
HM Land Registry,HM Land Registry,28/07/2021,Facilities Quoted & Ad-hoc Works,Facilities,ISS Mediclean Ltd,6008686,479.85,Facilities Quoted & Ad-hoc Works,Programme
HM Land Registry,HM Land Registry,28/07/2021,Facilities Quoted & Ad-hoc Works,Facilities,ISS Mediclean Ltd,6008686,36.24,Facilities Quoted & Ad-hoc Works,Programme
HM Land Registry,HM Land Registry,28/07/2021,Facilities Quoted & Ad-hoc Works,Facilities,ISS Mediclean Ltd,6008686,278.92,Facilities Quoted & Ad-hoc Works,Programme
HM Land Registry,HM Land Registry,28/07/2021,Facilities Quoted & Ad-hoc Works,Facilities,ISS Mediclean Ltd,6008686,"5,420.33",Facilities Quoted & Ad-hoc Works,Programme
HM Land Registry,HM Land Registry,28/07/2021,Facilities Quoted & Ad-hoc Works,Facilities,ISS Mediclean Ltd,6008686,68.80,Facilities Quoted & Ad-hoc Works,Programme
HM Land Registry,HM Land Registry,28/07/2021,Facilities Quoted & Ad-hoc Works,Facilities,ISS Mediclean Ltd,6008686,"6,292.62",Facilities Quoted & Ad-hoc Works,Programme
HM Land Registry,HM Land Registry,28/07/2021,Facilities Quoted & Ad-hoc Works,Facilities,ISS Mediclean Ltd,6008686,"2,015.75",Facilities Quoted & Ad-hoc Works,Programme
HM Land Registry,HM Land Registry,28/07/2021,Facilities Quoted & Ad-hoc Works,Facilities,ISS Mediclean Ltd,6008686,149.48,Facilities Quoted & Ad-hoc Works,Programme
HM Land Registry,HM Land Registry,28/07/2021,Facilities Quoted & Ad-hoc Works,Facilities,ISS Mediclean Ltd,6008686,400.75,Facilities Quoted & Ad-hoc Works,Programme
HM Land Registry,HM Land Registry,28/07/2021,Facilities Quoted & Ad-hoc Works,Facilities,ISS Mediclean Ltd,6008686,"4,283.74",Facilities Quoted & Ad-hoc Works,Programme
HM Land Registry,HM Land Registry,28/07/2021,Facilities Quoted & Ad-hoc Works,Facilities,ISS Mediclean Ltd,6008686,"1,426.89",Facilities Quoted & Ad-hoc Works,Programme
HM Land Registry,HM Land Registry,28/07/2021,Facilities Quoted & Ad-hoc Works,Facilities,ISS Mediclean Ltd,6008686,193.07,Facilities Quoted & Ad-hoc Works,Programme
HM Land Registry,HM Land Registry,28/07/2021,Facilities Quoted & Ad-hoc Works,Facilities,ISS Mediclean Ltd,6008686,39.84,Facilities Quoted & Ad-hoc Works,Programme
HM Land Registry,HM Land Registry,28/07/2021,Facilities Quoted & Ad-hoc Works,Facilities,ISS Mediclean Ltd,6008686,358.61,Facilities Quoted & Ad-hoc Works,Programme
HM Land Registry,HM Land Registry,28/07/2021,Facilities Quoted & Ad-hoc Works,Facilities,ISS Mediclean Ltd,6008686,"4,039.94",Facilities Quoted & Ad-hoc Works,Programme
HM Land Registry,HM Land Registry,28/07/2021,Facilities Quoted & Ad-hoc Works,Facilities,ISS Mediclean Ltd,6008686,41.62,Facilities Quoted & Ad-hoc Works,Programme
HM Land Registry,HM Land Registry,28/07/2021,Facilities Quoted & Ad-hoc Works,Facilities,ISS Mediclean Ltd,6008686,"4,411.52",Facilities Quoted & Ad-hoc Works,Programme
HM Land Registry,HM Land Registry,28/07/2021,Facilities Quoted & Ad-hoc Works,Facilities,ISS Mediclean Ltd,6008686,"9,089.22",Facilities Quoted & Ad-hoc Works,Programme
HM Land Registry,HM Land Registry,28/07/2021,Facilities Quoted & Ad-hoc Works,Facilities,ISS Mediclean Ltd,6008686,242.24,Facilities Quoted & Ad-hoc Works,Programme
HM Land Registry,HM Land Registry,28/07/2021,Facilities Quoted & Ad-hoc Works,Facilities,ISS Mediclean Ltd,6008686,178.34,Facilities Quoted & Ad-hoc Works,Programme
HM Land Registry,HM Land Registry,28/07/2021,Facilities Quoted & Ad-hoc Works,Facilities,ISS Mediclean Ltd,6008686,"4,923.84",Facilities Quoted & Ad-hoc Works,Programme
HM Land Registry,HM Land Registry,28/07/2021,Facilities Quoted & Ad-hoc Works,Facilities,ISS Mediclean Ltd,6008686,"3,623.12",Facilities Quoted & Ad-hoc Works,Programme
HM Land Registry,HM Land Registry,28/07/2021,Facilities Quoted & Ad-hoc Works,Facilities,ISS Mediclean Ltd,6008686,221.31,Facilities Quoted & Ad-hoc Works,Programme
HM Land Registry,HM Land Registry,28/07/2021,Facilities Quoted & Ad-hoc Works,Facilities,ISS Mediclean Ltd,6008686,27.37,Facilities Quoted & Ad-hoc Works,Programme
HM Land Registry,HM Land Registry,28/07/2021,Facilities Quoted & Ad-hoc Works,Facilities,ISS Mediclean Ltd,6008686,433.39,Facilities Quoted & Ad-hoc Works,Programme
HM Land Registry,HM Land Registry,28/07/2021,Facilities Quoted & Ad-hoc Works,Facilities,ISS Mediclean Ltd,6008686,"2,311.87",Facilities Quoted & Ad-hoc Works,Programme
HM Land Registry,HM Land Registry,28/07/2021,Facilities Quoted & Ad-hoc Works,Facilities,ISS Mediclean Ltd,6008686,41.62,Facilities Quoted & Ad-hoc Works,Programme
HM Land Registry,HM Land Registry,28/07/2021,Facilities Quoted & Ad-hoc Works,Facilities,ISS Mediclean Ltd,6008686,"3,892.31",Facilities Quoted & Ad-hoc Works,Programme
HM Land Registry,HM Land Registry,28/07/2021,Facilities Quoted & Ad-hoc Works,Facilities,ISS Mediclean Ltd,6008686,"1,612.12",Facilities Quoted & Ad-hoc Works,Programme
HM Land Registry,HM Land Registry,28/07/2021,Facilities Quoted & Ad-hoc Works,Facilities,ISS Mediclean Ltd,6008686,81.71,Facilities Quoted & Ad-hoc Works,Programme
HM Land Registry,HM Land Registry,28/07/2021,Facilities Quoted & Ad-hoc Works,Facilities,ISS Mediclean Ltd,6008686,496.78,Facilities Quoted & Ad-hoc Works,Programme
HM Land Registry,HM Land Registry,28/07/2021,Facilities Quoted & Ad-hoc Works,Facilities,ISS Mediclean Ltd,6008686,"1,495.03",Facilities Quoted & Ad-hoc Works,Programme
HM Land Registry,HM Land Registry,28/07/2021,Facilities Quoted & Ad-hoc Works,Facilities,ISS Mediclean Ltd,6008686,861.39,Facilities Quoted & Ad-hoc Works,Programme
HM Land Registry,HM Land Registry,28/07/2021,Facilities Quoted & Ad-hoc Works,Facilities,ISS Mediclean Ltd,6008686,107.93,Facilities Quoted & Ad-hoc Works,Programme
HM Land Registry,HM Land Registry,28/07/2021,Facilities Quoted & Ad-hoc Works,Facilities,ISS Mediclean Ltd,6008686,45.03,Facilities Quoted & Ad-hoc Works,Programme
HM Land Registry,HM Land Registry,28/07/2021,Facilities Quoted & Ad-hoc Works,Facilities,ISS Mediclean Ltd,6008686,641.62,Facilities Quoted & Ad-hoc Works,Programme
HM Land Registry,HM Land Registry,28/07/2021,Facilities Quoted & Ad-hoc Works,Facilities,ISS Mediclean Ltd,6008686,"7,341.41",Facilities Quoted & Ad-hoc Works,Programme
HM Land Registry,HM Land Registry,28/07/2021,Facilities Quoted & Ad-hoc Works,Facilities,ISS Mediclean Ltd,6008686,100.42,Facilities Quoted & Ad-hoc Works,Programme
HM Land Registry,HM Land Registry,28/07/2021,Facilities Quoted & Ad-hoc Works,Facilities,ISS Mediclean Ltd,6008686,"14,718.22",Facilities Quoted & Ad-hoc Works,Programme
HM Land Registry,HM Land Registry,28/07/2021,Facilities Quoted & Ad-hoc Works,Facilities,ISS Mediclean Ltd,6008686,"11,593.67",Facilities Quoted & Ad-hoc Works,Programme
HM Land Registry,HM Land Registry,28/07/2021,Facilities Quoted & Ad-hoc Works,Facilities,ISS Mediclean Ltd,6008686,553.02,Facilities Quoted & Ad-hoc Works,Programme
HM Land Registry,HM Land Registry,28/07/2021,Facilities Quoted & Ad-hoc Works,Facilities,ISS Mediclean Ltd,6008686,"1,787.29",Facilities Quoted & Ad-hoc Works,Programme
HM Land Registry,HM Land Registry,28/07/2021,Facilities Quoted & Ad-hoc Works,Facilities,ISS Mediclean Ltd,6008686,"6,915.60",Facilities Quoted & Ad-hoc Works,Programme
HM Land Registry,HM Land Registry,28/07/2021,Facilities Quoted & Ad-hoc Works,Facilities,ISS Mediclean Ltd,6008686,"2,597.34",Facilities Quoted & Ad-hoc Works,Programme
HM Land Registry,HM Land Registry,28/07/2021,Facilities Quoted & Ad-hoc Works,Facilities,ISS Mediclean Ltd,6008686,502.07,Facilities Quoted & Ad-hoc Works,Programme
HM Land Registry,HM Land Registry,28/07/2021,Facilities Quoted & Ad-hoc Works,Facilities,ISS Mediclean Ltd,6008686,45.03,Facilities Quoted & Ad-hoc Works,Programme
HM Land Registry,HM Land Registry,28/07/2021,Facilities Quoted & Ad-hoc Works,Facilities,ISS Mediclean Ltd,6008686,458.04,Facilities Quoted & Ad-hoc Works,Programme
HM Land Registry,HM Land Registry,28/07/2021,Facilities Quoted & Ad-hoc Works,Facilities,ISS Mediclean Ltd,6008686,"6,834.40",Facilities Quoted & Ad-hoc Works,Programme
HM Land Registry,HM Land Registry,28/07/2021,Facilities Quoted & Ad-hoc Works,Facilities,ISS Mediclean Ltd,6008686,41.62,Facilities Quoted & Ad-hoc Works,Programme
HM Land Registry,HM Land Registry,28/07/2021,Facilities Quoted & Ad-hoc Works,Facilities,ISS Mediclean Ltd,6008686,"4,343.53",Facilities Quoted & Ad-hoc Works,Programme
HM Land Registry,HM Land Registry,28/07/2021,Facilities Quoted & Ad-hoc Works,Facilities,ISS Mediclean Ltd,6008686,"3,432.18",Facilities Quoted & Ad-hoc Works,Programme
HM Land Registry,HM Land Registry,28/07/2021,Facilities Quoted & Ad-hoc Works,Facilities,ISS Mediclean Ltd,6008686,226.11,Facilities Quoted & Ad-hoc Works,Programme
HM Land Registry,HM Land Registry,28/07/2021,Facilities Quoted & Ad-hoc Works,Facilities,ISS Mediclean Ltd,6008686,"1,677.33",Facilities Quoted & Ad-hoc Works,Programme
HM Land Registry,HM Land Registry,28/07/2021,Facilities Quoted & Ad-hoc Works,Facilities,ISS Mediclean Ltd,6008686,"4,947.26",Facilities Quoted & Ad-hoc Works,Programme
HM Land Registry,HM Land Registry,28/07/2021,Facilities Quoted & Ad-hoc Works,Facilities,ISS Mediclean Ltd,6008686,"2,577.61",Facilities Quoted & Ad-hoc Works,Programme
HM Land Registry,HM Land Registry,28/07/2021,Facilities Quoted & Ad-hoc Works,Facilities,ISS Mediclean Ltd,6008686,283.09,Facilities Quoted & Ad-hoc Works,Programme
HM Land Registry,HM Land Registry,28/07/2021,Facilities Quoted & Ad-hoc Works,Facilities,ISS Mediclean Ltd,6008686,36.41,Facilities Quoted & Ad-hoc Works,Programme
HM Land Registry,HM Land Registry,28/07/2021,Facilities Quoted & Ad-hoc Works,Facilities,ISS Mediclean Ltd,6008686,598.06,Facilities Quoted & Ad-hoc Works,Programme
HM Land Registry,HM Land Registry,28/07/2021,Facilities Quoted & Ad-hoc Works,Facilities,ISS Mediclean Ltd,6008686,"3,641.28",Facilities Quoted & Ad-hoc Works,Programme
HM Land Registry,HM Land Registry,28/07/2021,Facilities Quoted & Ad-hoc Works,Facilities,ISS Mediclean Ltd,6008686,41.62,Facilities Quoted & Ad-hoc Works,Programme
HM Land Registry,HM Land Registry,28/07/2021,Facilities Quoted & Ad-hoc Works,Facilities,ISS Mediclean Ltd,6008686,"4,554.58",Facilities Quoted & Ad-hoc Works,Programme
HM Land Registry,HM Land Registry,28/07/2021,Facilities Quoted & Ad-hoc Works,Facilities,ISS Mediclean Ltd,6008686,"2,340.15",Facilities Quoted & Ad-hoc Works,Programme
HM Land Registry,HM Land Registry,28/07/2021,Facilities Quoted & Ad-hoc Works,Facilities,ISS Mediclean Ltd,6008686,176.03,Facilities Quoted & Ad-hoc Works,Programme
HM Land Registry,HM Land Registry,28/07/2021,Facilities Quoted & Ad-hoc Works,Facilities,ISS Mediclean Ltd,6008686,"1,036.88",Facilities Quoted & Ad-hoc Works,Programme
HM Land Registry,HM Land Registry,28/07/2021,Facilities Quoted & Ad-hoc Works,Facilities,ISS Mediclean Ltd,6008686,"4,231.52",Facilities Quoted & Ad-hoc Works,Programme
HM Land Registry,HM Land Registry,28/07/2021,Facilities Quoted & Ad-hoc Works,Facilities,ISS Mediclean Ltd,6008686,"1,903.63",Facilities Quoted & Ad-hoc Works,Programme
HM Land Registry,HM Land Registry,28/07/2021,Facilities Quoted & Ad-hoc Works,Facilities,ISS Mediclean Ltd,6008686,190.19,Facilities Quoted & Ad-hoc Works,Programme
HM Land Registry,HM Land Registry,28/07/2021,Facilities Quoted & Ad-hoc Works,Facilities,ISS Mediclean Ltd,6008686,41.52,Facilities Quoted & Ad-hoc Works,Programme
HM Land Registry,HM Land Registry,28/07/2021,Facilities Quoted & Ad-hoc Works,Facilities,ISS Mediclean Ltd,6008686,606.23,Facilities Quoted & Ad-hoc Works,Programme
HM Land Registry,HM Land Registry,28/07/2021,Facilities Quoted & Ad-hoc Works,Facilities,ISS Mediclean Ltd,6008686,"5,593.47",Facilities Quoted & Ad-hoc Works,Programme
HM Land Registry,HM Land Registry,28/07/2021,Facilities Quoted & Ad-hoc Works,Facilities,ISS Mediclean Ltd,6008686,55.22,Facilities Quoted & Ad-hoc Works,Programme
HM Land Registry,HM Land Registry,28/07/2021,Facilities Quoted & Ad-hoc Works,Facilities,ISS Mediclean Ltd,6008686,"4,852.37",Facilities Quoted & Ad-hoc Works,Programme
HM Land Registry,HM Land Registry,28/07/2021,Facilities Quoted & Ad-hoc Works,Facilities,ISS Mediclean Ltd,6008686,"2,549.67",Facilities Quoted & Ad-hoc Works,Programme
HM Land Registry,HM Land Registry,28/07/2021,Facilities Quoted & Ad-hoc Works,Facilities,ISS Mediclean Ltd,6008686,203.91,Facilities Quoted & Ad-hoc Works,Programme
HM Land Registry,HM Land Registry,28/07/2021,Facilities Quoted & Ad-hoc Works,Facilities,ISS Mediclean Ltd,6008686,"1,232.77",Facilities Quoted & Ad-hoc Works,Programme
HM Land Registry,HM Land Registry,28/07/2021,Facilities Quoted & Ad-hoc Works,Facilities,ISS Mediclean Ltd,6008686,"5,252.29",Facilities Quoted & Ad-hoc Works,Programme
HM Land Registry,HM Land Registry,28/07/2021,Facilities Quoted & Ad-hoc Works,Facilities,ISS Mediclean Ltd,6008686,"2,695.97",Facilities Quoted & Ad-hoc Works,Programme
HM Land Registry,HM Land Registry,28/07/2021,Facilities Quoted & Ad-hoc Works,Facilities,ISS Mediclean Ltd,6008686,210.00,Facilities Quoted & Ad-hoc Works,Programme
HM Land Registry,HM Land Registry,28/07/2021,Facilities Quoted & Ad-hoc Works,Facilities,ISS Mediclean Ltd,6008686,34.52,Facilities Quoted & Ad-hoc Works,Programme
HM Land Registry,HM Land Registry,28/07/2021,Facilities Quoted & Ad-hoc Works,Facilities,ISS Mediclean Ltd,6008686,135.76,Facilities Quoted & Ad-hoc Works,Programme
HM Land Registry,HM Land Registry,28/07/2021,Facilities Quoted & Ad-hoc Works,Facilities,ISS Mediclean Ltd,6008686,"2,332.41",Facilities Quoted & Ad-hoc Works,Programme
HM Land Registry,HM Land Registry,28/07/2021,Facilities Quoted & Ad-hoc Works,Facilities,ISS Mediclean Ltd,6008686,41.62,Facilities Quoted & Ad-hoc Works,Programme
HM Land Registry,HM Land Registry,28/07/2021,Facilities Quoted & Ad-hoc Works,Facilities,ISS Mediclean Ltd,6008686,"8,905.74",Facilities Quoted & Ad-hoc Works,Programme
HM Land Registry,HM Land Registry,28/07/2021,Facilities Quoted & Ad-hoc Works,Facilities,ISS Mediclean Ltd,6008686,"6,210.86",Facilities Quoted & Ad-hoc Works,Programme
HM Land Registry,HM Land Registry,28/07/2021,Facilities Quoted & Ad-hoc Works,Facilities,ISS Mediclean Ltd,6008686,241.14,Facilities Quoted & Ad-hoc Works,Programme
HM Land Registry,HM Land Registry,28/07/2021,Facilities Quoted & Ad-hoc Works,Facilities,ISS Mediclean Ltd,6008686,339.55,Facilities Quoted & Ad-hoc Works,Programme
HM Land Registry,HM Land Registry,28/07/2021,Facilities Quoted & Ad-hoc Works,Facilities,ISS Mediclean Ltd,6008686,"8,647.03",Facilities Quoted & Ad-hoc Works,Programme
HM Land Registry,HM Land Registry,28/07/2021,Facilities Quoted & Ad-hoc Works,Facilities,ISS Mediclean Ltd,6008686,341.93,Facilities Quoted & Ad-hoc Works,Programme
HM Land Registry,HM Land Registry,28/07/2021,Facilities Quoted & Ad-hoc Works,Facilities,ISS Mediclean Ltd,6008686,39.00,Facilities Quoted & Ad-hoc Works,Programme
HM Land Registry,HM Land Registry,28/07/2021,Facilities Quoted & Ad-hoc Works,Facilities,ISS Mediclean Ltd,6008686,25.72,Facilities Quoted & Ad-hoc Works,Programme
HM Land Registry,HM Land Registry,28/07/2021,Facilities Quoted & Ad-hoc Works,Facilities,ISS Mediclean Ltd,6008686,99.01,Facilities Quoted & Ad-hoc Works,Programme
HM Land Registry,HM Land Registry,28/07/2021,Facilities Quoted & Ad-hoc Works,Facilities,ISS Mediclean Ltd,6008686,940.23,Facilities Quoted & Ad-hoc Works,Programme
HM Land Registry,HM Land Registry,28/07/2021,Facilities Quoted & Ad-hoc Works,Facilities,ISS Mediclean Ltd,6008686,41.62,Facilities Quoted & Ad-hoc Works,Programme
HM Land Registry,HM Land Registry,28/07/2021,Facilities Quoted & Ad-hoc Works,Facilities,ISS Mediclean Ltd,6008686,"11,833.69",Facilities Quoted & Ad-hoc Works,Programme
HM Land Registry,HM Land Registry,28/07/2021,Facilities Quoted & Ad-hoc Works,Facilities,ISS Mediclean Ltd,6008686,"1,256.29",Facilities Quoted & Ad-hoc Works,Programme
HM Land Registry,HM Land Registry,28/07/2021,Facilities Quoted & Ad-hoc Works,Facilities,ISS Mediclean Ltd,6008686,161.20,Facilities Quoted & Ad-hoc Works,Programme
HM Land Registry,HM Land Registry,28/07/2021,Facilities Quoted & Ad-hoc Works,Facilities,ISS Mediclean Ltd,6008686,325.85,Facilities Quoted & Ad-hoc Works,Programme
HM Land Registry,HM Land Registry,28/07/2021,Facilities Quoted & Ad-hoc Works,Facilities,ISS Mediclean Ltd,6008686,"10,035.41",Facilities Quoted & Ad-hoc Works,Programme
HM Land Registry,HM Land Registry,28/07/2021,Facilities Quoted & Ad-hoc Works,Facilities,ISS Mediclean Ltd,6008686,447.14,Facilities Quoted & Ad-hoc Works,Programme
HM Land Registry,HM Land Registry,28/07/2021,Facilities Quoted & Ad-hoc Works,Facilities,ISS Mediclean Ltd,6008686,17.56,Facilities Quoted & Ad-hoc Works,Programme
HM Land Registry,HM Land Registry,28/07/2021,Facilities Quoted & Ad-hoc Works,Facilities,ISS Mediclean Ltd,6008686,16.85,Facilities Quoted & Ad-hoc Works,Programme
HM Land Registry,HM Land Registry,28/07/2021,Facilities Quoted & Ad-hoc Works,Facilities,ISS Mediclean Ltd,6008686,497.91,Facilities Quoted & Ad-hoc Works,Programme
HM Land Registry,HM Land Registry,28/07/2021,Facilities Quoted & Ad-hoc Works,Facilities,ISS Mediclean Ltd,6008686,629.78,Facilities Quoted & Ad-hoc Works,Programme
HM Land Registry,HM Land Registry,28/07/2021,Facilities Quoted & Ad-hoc Works,Facilities,ISS Mediclean Ltd,6008686,16.94,Facilities Quoted & Ad-hoc Works,Programme
HM Land Registry,HM Land Registry,28/07/2021,Facilities Quoted & Ad-hoc Works,Facilities,ISS Mediclean Ltd,6008686,129.18,Facilities Quoted & Ad-hoc Works,Programme
HM Land Registry,HM Land Registry,28/07/2021,Facilities Quoted & Ad-hoc Works,Facilities,ISS Mediclean Ltd,6008686,187.97,Facilities Quoted & Ad-hoc Works,Programme
HM Land Registry,HM Land Registry,28/07/2021,Facilities Quoted & Ad-hoc Works,Facilities,ISS Mediclean Ltd,6008686,16.88,Facilities Quoted & Ad-hoc Works,Programme
HM Land Registry,HM Land Registry,28/07/2021,Facilities Quoted & Ad-hoc Works,Facilities,ISS Mediclean Ltd,6008686,-0.01,Facilities Quoted & Ad-hoc Works,Programme
HM Land Registry,HM Land Registry,28/07/2021,Facilities Quoted & Ad-hoc Works,Facilities,ISS Mediclean Ltd,6008686,173.75,Facilities Quoted & Ad-hoc Works,Programme
HM Land Registry,HM Land Registry,28/07/2021,Facilities Quoted & Ad-hoc Works,Facilities,ISS Mediclean Ltd,6008686,313.62,Facilities Quoted & Ad-hoc Works,Programme
HM Land Registry,HM Land Registry,28/07/2021,Facilities Quoted & Ad-hoc Works,Facilities,ISS Mediclean Ltd,6008686,41.16,Facilities Quoted & Ad-hoc Works,Programme
HM Land Registry,HM Land Registry,28/07/2021,Facilities Quoted & Ad-hoc Works,Facilities,ISS Mediclean Ltd,6008686,102.98,Facilities Quoted & Ad-hoc Works,Programme
HM Land Registry,HM Land Registry,28/07/2021,Facilities Quoted & Ad-hoc Works,Facilities,ISS Mediclean Ltd,6008686,266.45,Facilities Quoted & Ad-hoc Works,Programme
HM Land Registry,HM Land Registry,28/07/2021,Facilities Quoted & Ad-hoc Works,Facilities,ISS Mediclean Ltd,6008686,142.47,Facilities Quoted & Ad-hoc Works,Programme
HM Land Registry,HM Land Registry,28/07/2021,Facilities Quoted & Ad-hoc Works,Facilities,ISS Mediclean Ltd,6008686,16.88,Facilities Quoted & Ad-hoc Works,Programme
HM Land Registry,HM Land Registry,28/07/2021,Facilities Quoted & Ad-hoc Works,Facilities,ISS Mediclean Ltd,6008686,135.84,Facilities Quoted & Ad-hoc Works,Programme
HM Land Registry,HM Land Registry,28/07/2021,Facilities Quoted & Ad-hoc Works,Facilities,ISS Mediclean Ltd,6008686,632.37,Facilities Quoted & Ad-hoc Works,Programme
HM Land Registry,HM Land Registry,28/07/2021,Facilities Quoted & Ad-hoc Works,Facilities,ISS Mediclean Ltd,6008686,16.52,Facilities Quoted & Ad-hoc Works,Programme
HM Land Registry,HM Land Registry,28/07/2021,Facilities Quoted & Ad-hoc Works,Facilities,ISS Mediclean Ltd,6008686,62.37,Facilities Quoted & Ad-hoc Works,Programme
HM Land Registry,HM Land Registry,28/07/2021,Facilities Quoted & Ad-hoc Works,Facilities,ISS Mediclean Ltd,6008686,465.94,Facilities Quoted & Ad-hoc Works,Programme
HM Land Registry,HM Land Registry,28/07/2021,Facilities Quoted & Ad-hoc Works,Facilities,ISS Mediclean Ltd,6008686,460.29,Facilities Quoted & Ad-hoc Works,Programme
HM Land Registry,HM Land Registry,28/07/2021,Facilities Quoted & Ad-hoc Works,Facilities,ISS Mediclean Ltd,6008686,16.79,Facilities Quoted & Ad-hoc Works,Programme
HM Land Registry,HM Land Registry,28/07/2021,Facilities Quoted & Ad-hoc Works,Facilities,ISS Mediclean Ltd,6008686,66.44,Facilities Quoted & Ad-hoc Works,Programme
HM Land Registry,HM Land Registry,28/07/2021,Facilities Quoted & Ad-hoc Works,Facilities,ISS Mediclean Ltd,6008686,632.37,Facilities Quoted & Ad-hoc Works,Programme
HM Land Registry,HM Land Registry,28/07/2021,Facilities Quoted & Ad-hoc Works,Facilities,ISS Mediclean Ltd,6008686,15.44,Facilities Quoted & Ad-hoc Works,Programme
HM Land Registry,HM Land Registry,28/07/2021,Facilities Quoted & Ad-hoc Works,Facilities,ISS Mediclean Ltd,6008686,39.88,Facilities Quoted & Ad-hoc Works,Programme
HM Land Registry,HM Land Registry,28/07/2021,Facilities Quoted & Ad-hoc Works,Facilities,ISS Mediclean Ltd,6008686,387.69,Facilities Quoted & Ad-hoc Works,Programme
HM Land Registry,HM Land Registry,28/07/2021,Facilities Quoted & Ad-hoc Works,Facilities,ISS Mediclean Ltd,6008686,355.08,Facilities Quoted & Ad-hoc Works,Programme
HM Land Registry,HM Land Registry,28/07/2021,Facilities Quoted & Ad-hoc Works,Facilities,ISS Mediclean Ltd,6008686,13.59,Facilities Quoted & Ad-hoc Works,Programme
HM Land Registry,HM Land Registry,28/07/2021,Facilities Quoted & Ad-hoc Works,Facilities,ISS Mediclean Ltd,6008686,827.54,Facilities Quoted & Ad-hoc Works,Programme
HM Land Registry,HM Land Registry,28/07/2021,Facilities Quoted & Ad-hoc Works,Facilities,ISS Mediclean Ltd,6008686,0.04,Facilities Quoted & Ad-hoc Works,Programme
HM Land Registry,HM Land Registry,28/07/2021,Major Property Maintenance Projects,Facilities,ISS Mediclean Ltd,6008686,"30,773.13",Major Property Maintenance Projects,Programme
HM Land Registry,HM Land Registry,19/07/2021,Professional Services,Office of DDaT,Kainos Software Ltd,6008598,"8,189.80",Professional Services,Programme
HM Land Registry,HM Land Registry,19/07/2021,Professional Services,Office of DDaT,Kainos Software Ltd,6008598,"1,637.96",Professional Services,Programme
HM Land Registry,HM Land Registry,19/07/2021,Professional Services,Office of DDaT,Kainos Software Ltd,6008598,"27,086.00",Professional Services,Programme
HM Land Registry,HM Land Registry,19/07/2021,Professional Services,Office of DDaT,Kainos Software Ltd,6008598,"5,417.20",Professional Services,Programme
HM Land Registry,HM Land Registry,19/07/2021,Professional Services,DDaT Change Activities,Kainos Software Ltd,6008598,"13,484.60",Professional Services,Programme
HM Land Registry,HM Land Registry,19/07/2021,Professional Services,DDaT Change Activities,Kainos Software Ltd,6008598,"6,072.00",Professional Services,Programme
HM Land Registry,HM Land Registry,19/07/2021,Professional Services,DDaT Change Activities,Kainos Software Ltd,6008598,"1,214.40",Professional Services,Programme
HM Land Registry,HM Land Registry,19/07/2021,Professional Services,DDaT Change Activities,Kainos Software Ltd,6008598,"2,696.92",Professional Services,Programme
HM Land Registry,HM Land Registry,19/07/2021,Professional Services,DDaT Change Activities,Kainos Software Ltd,6008598,"395,236.17",Professional Services,Programme
HM Land Registry,HM Land Registry,19/07/2021,Professional Services,DDaT Change Activities,Kainos Software Ltd,6008598,"79,047.23",Professional Services,Programme
HM Land Registry,HM Land Registry,19/07/2021,Professional Services,DDaT Change Activities,Kainos Software Ltd,6008598,"59,271.10",Professional Services,Programme
HM Land Registry,HM Land Registry,19/07/2021,Professional Services,DDaT Change Activities,Kainos Software Ltd,6008598,"39,779.00",Professional Services,Programme
HM Land Registry,HM Land Registry,19/07/2021,Professional Services,DDaT Change Activities,Kainos Software Ltd,6008598,"7,955.80",Professional Services,Programme
HM Land Registry,HM Land Registry,19/07/2021,Professional Services,DDaT Change Activities,Kainos Software Ltd,6008598,"11,854.22",Professional Services,Programme
HM Land Registry,HM Land Registry,19/07/2021,Professional Services,DDaT Change Activities,Kainos Software Ltd,6008598,"155,900.77",Professional Services,Programme
HM Land Registry,HM Land Registry,19/07/2021,Professional Services,DDaT Change Activities,Kainos Software Ltd,6008598,"15,462.00",Professional Services,Programme
HM Land Registry,HM Land Registry,19/07/2021,Professional Services,DDaT Change Activities,Kainos Software Ltd,6008598,"3,092.40",Professional Services,Programme
HM Land Registry,HM Land Registry,19/07/2021,Professional Services,DDaT Change Activities,Kainos Software Ltd,6008598,"31,180.15",Professional Services,Programme
HM Land Registry,HM Land Registry,19/07/2021,Professional Services,DDaT Change Activities,Kainos Software Ltd,6008598,"13,050.87",Professional Services,Programme
HM Land Registry,HM Land Registry,19/07/2021,Professional Services,DDaT Change Activities,Kainos Software Ltd,6008598,"2,610.17",Professional Services,Programme
HM Land Registry,HM Land Registry,19/07/2021,Professional Services,Transformation Change Activities,Kainos Software Ltd,6008598,"16,698.00",Professional Services,Programme
HM Land Registry,HM Land Registry,19/07/2021,Professional Services,Transformation Change Activities,Kainos Software Ltd,6008598,"3,339.60",Professional Services,Programme
HM Land Registry,HM Land Registry,19/07/2021,Professional Services,DDaT Change Activities,Kainos Software Ltd,6008598,"12,226.00",Professional Services,Programme
HM Land Registry,HM Land Registry,19/07/2021,Professional Services,DDaT Change Activities,Kainos Software Ltd,6008598,"12,708.00",Professional Services,Programme
HM Land Registry,HM Land Registry,19/07/2021,Professional Services,DDaT Change Activities,Kainos Software Ltd,6008598,"2,541.60",Professional Services,Programme
HM Land Registry,HM Land Registry,19/07/2021,Professional Services,DDaT Change Activities,Kainos Software Ltd,6008598,"2,445.20",Professional Services,Programme
HM Land Registry,HM Land Registry,19/07/2021,Professional Services,Operations Change Activities,Kainos Software Ltd,6008598,"50,914.33",Professional Services,Programme
HM Land Registry,HM Land Registry,19/07/2021,Professional Services,Operations Change Activities,Kainos Software Ltd,6008598,"10,182.87",Professional Services,Programme
HM Land Registry,HM Land Registry,19/07/2021,Professional Services,Finance,Kainos Software Ltd,6008598,"18,898.00",Professional Services,Programme
HM Land Registry,HM Land Registry,19/07/2021,Professional Services,Finance,Kainos Software Ltd,6008598,"3,779.60",Professional Services,Programme
HM Land Registry,HM Land Registry,19/07/2021,Professional Services,Transformation Change Activities,Kainos Software Ltd,6008598,"11,764.50",Professional Services,Programme
HM Land Registry,HM Land Registry,19/07/2021,Professional Services,Transformation Change Activities,Kainos Software Ltd,6008598,"2,352.90",Professional Services,Programme
HM Land Registry,HM Land Registry,19/07/2021,Professional Services,DDaT Change Activities,Kainos Software Ltd,6008598,"6,872.00",Professional Services,Programme
HM Land Registry,HM Land Registry,19/07/2021,Professional Services,DDaT Change Activities,Kainos Software Ltd,6008598,"3,953.60",Professional Services,Programme
HM Land Registry,HM Land Registry,19/07/2021,Professional Services,DDaT Change Activities,Kainos Software Ltd,6008598,"1,374.40",Professional Services,Programme
HM Land Registry,HM Land Registry,19/07/2021,Professional Services,DDaT Change Activities,Kainos Software Ltd,6008598,790.72,Professional Services,Programme
HM Land Registry,HM Land Registry,19/07/2021,Professional Services,Operations Change Activities,Kainos Software Ltd,6008598,"33,120.47",Professional Services,Programme
HM Land Registry,HM Land Registry,19/07/2021,Professional Services,Operations Change Activities,Kainos Software Ltd,6008598,"6,624.09",Professional Services,Programme
HM Land Registry,HM Land Registry,19/07/2021,Professional Services,Operations Change Activities,Kainos Software Ltd,6008598,"1,059.00",Professional Services,Programme
HM Land Registry,HM Land Registry,19/07/2021,Professional Services,Operations Change Activities,Kainos Software Ltd,6008598,"12,955.60",Professional Services,Programme
HM Land Registry,HM Land Registry,19/07/2021,Professional Services,Operations Change Activities,Kainos Software Ltd,6008598,"9,331.00",Professional Services,Programme
HM Land Registry,HM Land Registry,19/07/2021,Professional Services,Operations Change Activities,Kainos Software Ltd,6008598,"1,200.20",Professional Services,Programme
HM Land Registry,HM Land Registry,19/07/2021,Professional Services,Operations Change Activities,Kainos Software Ltd,6008598,"2,591.12",Professional Services,Programme
HM Land Registry,HM Land Registry,19/07/2021,Professional Services,Operations Change Activities,Kainos Software Ltd,6008598,240.04,Professional Services,Programme
HM Land Registry,HM Land Registry,19/07/2021,Professional Services,Operations Change Activities,Kainos Software Ltd,6008598,211.80,Professional Services,Programme
HM Land Registry,HM Land Registry,19/07/2021,Professional Services,Operations Change Activities,Kainos Software Ltd,6008598,"1,866.20",Professional Services,Programme
HM Land Registry,HM Land Registry,19/07/2021,Professional Services,DDaT Change Activities,Kainos Software Ltd,6008598,"22,144.50",Professional Services,Programme
HM Land Registry,HM Land Registry,19/07/2021,Professional Services,DDaT Change Activities,Kainos Software Ltd,6008598,"4,428.90",Professional Services,Programme
HM Land Registry,HM Land Registry,19/07/2021,Professional Services,DDaT Change Activities,Kainos Software Ltd,6008598,"183,275.87",Professional Services,Programme
HM Land Registry,HM Land Registry,19/07/2021,Professional Services,DDaT Change Activities,Kainos Software Ltd,6008598,"40,120.40",Professional Services,Programme
HM Land Registry,HM Land Registry,19/07/2021,Professional Services,DDaT Change Activities,Kainos Software Ltd,6008598,"11,366.60",Professional Services,Programme
HM Land Registry,HM Land Registry,19/07/2021,Professional Services,DDaT Change Activities,Kainos Software Ltd,6008598,"10,519.40",Professional Services,Programme
HM Land Registry,HM Land Registry,19/07/2021,Professional Services,DDaT Change Activities,Kainos Software Ltd,6008598,"2,103.88",Professional Services,Programme
HM Land Registry,HM Land Registry,19/07/2021,Professional Services,DDaT Change Activities,Kainos Software Ltd,6008598,"8,024.08",Professional Services,Programme
HM Land Registry,HM Land Registry,19/07/2021,Professional Services,DDaT Change Activities,Kainos Software Ltd,6008598,"38,928.49",Professional Services,Programme
HM Land Registry,HM Land Registry,21/07/2021,Professional Services,Operations Change Activities,Kainos Software Ltd,6008631,"16,344.00",Professional Services,Programme
HM Land Registry,HM Land Registry,21/07/2021,Professional Services,Operations Change Activities,Kainos Software Ltd,6008631,"3,268.81",Professional Services,Programme
HM Land Registry,HM Land Registry,21/07/2021,Professional Services,Operations Change Activities,Kainos Software Ltd,6008631,"5,596.43",Professional Services,Programme
HM Land Registry,HM Land Registry,21/07/2021,Professional Services,Operations Change Activities,Kainos Software Ltd,6008631,"27,982.20",Professional Services,Programme
HM Land Registry,HM Land Registry,19/07/2021,Other External Training,Organisation & Employee Development,KPMG LLP,6008599,"1,084.00",Other External Training,Programme
HM Land Registry,HM Land Registry,19/07/2021,Other External Training,Organisation & Employee Development,KPMG LLP,6008599,"22,892.00",Other External Training,Programme
HM Land Registry,HM Land Registry,07/07/2021,Computer Equipment Hire,DDaT Operations,"Levi, Ray & Shoup Inc",6008503,"58,607.00",Computer Equipment Hire,Programme
HM Land Registry,HM Land Registry,07/07/2021,Computer Equipment Hire,DDaT Operations,"Levi, Ray & Shoup Inc",6008503,"11,721.40",Computer Equipment Hire,Programme
HM Land Registry,HM Land Registry,05/07/2021,LLC Transition Payments to Local Authorities,Transformation Change Activities,London Borough of Lambeth,6008479,"75,000.00",LLC Transition Payments to Local Authorities,Programme
HM Land Registry,HM Land Registry,05/07/2021,LLC Transition Payments to Local Authorities,Transformation Change Activities,London Borough of Lambeth,6008479,"15,000.00",LLC Transition Payments to Local Authorities,Programme
HM Land Registry,HM Land Registry,26/07/2021,Computer Equipment Non HP Licences,DDaT Operations,Microsoft Limited,6008665,"43,193.00",Computer Equipment Non HP Licences,Programme
HM Land Registry,HM Land Registry,26/07/2021,Computer Equipment Non HP Licences,DDaT Operations,Microsoft Limited,6008665,"8,638.60",Computer Equipment Non HP Licences,Programme
HM Land Registry,HM Land Registry,08/07/2021,Computer Equipment Maintenance,DDaT Operations,MicroStrategy Ltd,6008520,"57,024.75",Computer Equipment Maintenance,Programme
HM Land Registry,HM Land Registry,13/07/2021,LLC Transition Payments to Local Authorities,Transformation Change Activities,Milton Keynes Council,6008552,"90,000.00",LLC Transition Payments to Local Authorities,Programme
HM Land Registry,HM Land Registry,13/07/2021,LLC Transition Payments to Local Authorities,Transformation Change Activities,Milton Keynes Council,6008552,"18,000.00",LLC Transition Payments to Local Authorities,Programme
HM Land Registry,HM Land Registry,26/07/2021,Professional Services,Transformation Change Activities,"Ministry of Housing, Communities & Local Government",6008666,"74,877.00",Professional Services,Programme
HM Land Registry,HM Land Registry,19/07/2021,Computer Equipment Hire,DDaT Operations,Namic System Software AS,64263,"43,678.00",Computer Equipment Hire,Programme
HM Land Registry,HM Land Registry,19/07/2021,Professional Services,DDaT Change Activities,North Highland UK Ltd,6008600,"33,924.00",Professional Services,Programme
HM Land Registry,HM Land Registry,19/07/2021,Professional Services,DDaT Change Activities,North Highland UK Ltd,6008600,"24,594.00",Professional Services,Programme
HM Land Registry,HM Land Registry,19/07/2021,Professional Services,DDaT Change Activities,North Highland UK Ltd,6008600,"9,936.00",Professional Services,Programme
HM Land Registry,HM Land Registry,19/07/2021,Professional Services,DDaT Change Activities,North Highland UK Ltd,6008600,"5,803.80",Professional Services,Programme
HM Land Registry,HM Land Registry,19/07/2021,Professional Services,DDaT Change Activities,North Highland UK Ltd,6008600,"12,422.20",Professional Services,Programme
HM Land Registry,HM Land Registry,19/07/2021,Professional Services,DDaT Change Activities,North Highland UK Ltd,6008600,"20,096.40",Professional Services,Programme
HM Land Registry,HM Land Registry,19/07/2021,Professional Services,DDaT Change Activities,North Highland UK Ltd,6008600,"4,918.80",Professional Services,Programme
HM Land Registry,HM Land Registry,19/07/2021,Professional Services,DDaT Change Activities,North Highland UK Ltd,6008600,"6,784.80",Professional Services,Programme
HM Land Registry,HM Land Registry,19/07/2021,Professional Services,DDaT Change Activities,North Highland UK Ltd,6008600,"2,484.44",Professional Services,Programme
HM Land Registry,HM Land Registry,19/07/2021,Professional Services,DDaT Change Activities,North Highland UK Ltd,6008600,"1,160.76",Professional Services,Programme
HM Land Registry,HM Land Registry,19/07/2021,Professional Services,DDaT Change Activities,North Highland UK Ltd,6008600,"4,019.28",Professional Services,Programme
HM Land Registry,HM Land Registry,19/07/2021,Professional Services,DDaT Change Activities,North Highland UK Ltd,6008600,"1,987.20",Professional Services,Programme
HM Land Registry,HM Land Registry,19/07/2021,Professional Services,DDaT Change Activities,North Highland UK Ltd,6008600,"13,564.80",Professional Services,Programme
HM Land Registry,HM Land Registry,19/07/2021,Professional Services,DDaT Change Activities,North Highland UK Ltd,6008600,"2,712.96",Professional Services,Programme
HM Land Registry,HM Land Registry,19/07/2021,Professional Services,Transformation Change Activities,North Highland UK Ltd,6008600,"9,936.00",Professional Services,Programme
HM Land Registry,HM Land Registry,19/07/2021,Professional Services,Transformation Change Activities,North Highland UK Ltd,6008600,"1,987.20",Professional Services,Programme
HM Land Registry,HM Land Registry,07/07/2021,LLC Transition Payments to Local Authorities,Transformation Change Activities,Norwich City Council,6008507,"75,000.00",LLC Transition Payments to Local Authorities,Programme
HM Land Registry,HM Land Registry,07/07/2021,LLC Transition Payments to Local Authorities,Transformation Change Activities,Norwich City Council,6008507,"15,000.00",LLC Transition Payments to Local Authorities,Programme
HM Land Registry,HM Land Registry,26/07/2021,Fixed Asset Interface Account,Balance Sheet,OpenView Security Solutions Ltd,6008667,"32,232.92",Fixed Asset Interface Account,Programme
HM Land Registry,HM Land Registry,26/07/2021,Fixed Asset Interface Account,Balance Sheet,OpenView Security Solutions Ltd,6008667,"6,446.58",Fixed Asset Interface Account,Programme
HM Land Registry,HM Land Registry,26/07/2021,Fixed Asset Interface Account,Balance Sheet,OpenView Security Solutions Ltd,6008667,"17,091.14",Fixed Asset Interface Account,Programme
HM Land Registry,HM Land Registry,26/07/2021,Fixed Asset Interface Account,Balance Sheet,OpenView Security Solutions Ltd,6008667,"3,418.23",Fixed Asset Interface Account,Programme
HM Land Registry,HM Land Registry,01/07/2021,Software as a Service (Cloud),DDaT Operations,Oracle Corporation (UK) Ltd,6008466,"30,000.00",Software as a Service (Cloud),Programme
HM Land Registry,HM Land Registry,28/07/2021,Ordnance Survey Surveys,Central Operations,Ordnance Survey,6008690,"242,052.00",Ordnance Survey Surveys,Programme
HM Land Registry,HM Land Registry,29/07/2021,Rates Payable,Facilities & Property Asset Management,Plymouth City Council,6008709,"32,768.00",Rates Payable,Programme
HM Land Registry,HM Land Registry,22/07/2021,RFS Outsourced Services,Document Storage and Retrieval,Restore Plc,6008660,"127,596.46",RFS Outsourced Services,Programme
HM Land Registry,HM Land Registry,22/07/2021,RFS Outsourced Services,Document Storage and Retrieval,Restore Plc,6008660,"216,161.84",RFS Outsourced Services,Programme
HM Land Registry,HM Land Registry,15/07/2021,Letter Post,Facilities,Royal Mail,6008581,4.96,Letter Post,Programme
HM Land Registry,HM Land Registry,15/07/2021,Letter Post,Facilities,Royal Mail,6008581,787.00,Letter Post,Programme
HM Land Registry,HM Land Registry,15/07/2021,Letter Post,Facilities,Royal Mail,6008581,"1,371.50",Letter Post,Programme
HM Land Registry,HM Land Registry,15/07/2021,Letter Post,Facilities,Royal Mail,6008581,124.00,Letter Post,Programme
HM Land Registry,HM Land Registry,15/07/2021,Letter Post,Facilities,Royal Mail,6008581,41.24,Letter Post,Programme
HM Land Registry,HM Land Registry,15/07/2021,Letter Post,Facilities,Royal Mail,6008581,135.26,Letter Post,Programme
HM Land Registry,HM Land Registry,15/07/2021,Letter Post,Facilities,Royal Mail,6008581,69.44,Letter Post,Programme
HM Land Registry,HM Land Registry,15/07/2021,Letter Post,Facilities,Royal Mail,6008581,62.71,Letter Post,Programme
HM Land Registry,HM Land Registry,15/07/2021,Letter Post,Facilities,Royal Mail,6008581,0.88,Letter Post,Programme
HM Land Registry,HM Land Registry,15/07/2021,Letter Post,Facilities,Royal Mail,6008581,"69,935.73",Letter Post,Programme
HM Land Registry,HM Land Registry,15/07/2021,Letter Post,Facilities,Royal Mail,6008581,"1,011.35",Letter Post,Programme
HM Land Registry,HM Land Registry,15/07/2021,Letter Post,Facilities,Royal Mail,6008581,1.86,Letter Post,Programme
HM Land Registry,HM Land Registry,13/07/2021,"FF&F:Purchases <1,000",Facilities,Senator International Ltd,6008554,-163.37,"FF&F:Purchases <1,000",Programme
HM Land Registry,HM Land Registry,13/07/2021,"FF&F:Purchases <1,000",Facilities,Senator International Ltd,6008554,-32.67,"FF&F:Purchases <1,000",Programme
HM Land Registry,HM Land Registry,13/07/2021,"FF&F:Purchases <1,000",HR & OD Change Activities,Senator International Ltd,6008554,"18,624.10","FF&F:Purchases <1,000",Programme
HM Land Registry,HM Land Registry,13/07/2021,"FF&F:Purchases <1,000",HR & OD Change Activities,Senator International Ltd,6008554,"3,724.82","FF&F:Purchases <1,000",Programme
HM Land Registry,HM Land Registry,13/07/2021,"FF&F:Purchases <1,000",Facilities,Senator International Ltd,6008554,"22,582.53","FF&F:Purchases <1,000",Programme
HM Land Registry,HM Land Registry,13/07/2021,"FF&F:Purchases <1,000",Facilities,Senator International Ltd,6008554,"4,516.51","FF&F:Purchases <1,000",Programme
HM Land Registry,HM Land Registry,05/07/2021,LLC Transition Payments to Local Authorities,Transformation Change Activities,Sevenoaks District Council,6008482,"60,000.00",LLC Transition Payments to Local Authorities,Programme
HM Land Registry,HM Land Registry,05/07/2021,LLC Transition Payments to Local Authorities,Transformation Change Activities,Sevenoaks District Council,6008482,"12,000.00",LLC Transition Payments to Local Authorities,Programme
HM Land Registry,HM Land Registry,19/07/2021,Other External Training,Organisation & Employee Development,Softcat PLC,6008603,"9,600.00",Other External Training,Programme
HM Land Registry,HM Land Registry,19/07/2021,Other External Training,Organisation & Employee Development,Softcat PLC,6008603,"3,600.00",Other External Training,Programme
HM Land Registry,HM Land Registry,19/07/2021,Other External Training,Organisation & Employee Development,Softcat PLC,6008603,"8,625.00",Other External Training,Programme
HM Land Registry,HM Land Registry,12/07/2021,Professional Services,DDaT Change Activities,Sparta Global Ltd,6008544,"6,490.00",Professional Services,Programme
HM Land Registry,HM Land Registry,12/07/2021,Professional Services,DDaT Change Activities,Sparta Global Ltd,6008544,"1,298.00",Professional Services,Programme
HM Land Registry,HM Land Registry,12/07/2021,Assets in the Course of Construction,Transformation Change Activities,Sparta Global Ltd,6008544,"4,500.00",Assets in the Course of Construction,Programme
HM Land Registry,HM Land Registry,12/07/2021,Assets in the Course of Construction,Transformation Change Activities,Sparta Global Ltd,6008544,900.00,Assets in the Course of Construction,Programme
HM Land Registry,HM Land Registry,12/07/2021,Assets in the Course of Construction,Transformation Change Activities,Sparta Global Ltd,6008544,"5,250.00",Assets in the Course of Construction,Programme
HM Land Registry,HM Land Registry,12/07/2021,Assets in the Course of Construction,Transformation Change Activities,Sparta Global Ltd,6008544,"1,050.00",Assets in the Course of Construction,Programme
HM Land Registry,HM Land Registry,12/07/2021,Assets in the Course of Construction,Transformation Change Activities,Sparta Global Ltd,6008544,"5,500.00",Assets in the Course of Construction,Programme
HM Land Registry,HM Land Registry,12/07/2021,Assets in the Course of Construction,Transformation Change Activities,Sparta Global Ltd,6008544,"1,100.00",Assets in the Course of Construction,Programme
HM Land Registry,HM Land Registry,07/07/2021,Consultancy IT Advice Only,Finance,Specialist Computer Centres Plc - SCC,6008510,"12,881.28",Consultancy IT Advice Only,Programme
HM Land Registry,HM Land Registry,07/07/2021,Assets in the Course of Construction,DDaT Change Activities,Specialist Computer Centres Plc - SCC,6008510,"208,333.33",Assets in the Course of Construction,Programme
HM Land Registry,HM Land Registry,07/07/2021,Fixed Asset Interface Account,Balance Sheet,Specialist Computer Centres Plc - SCC,6008510,"5,117.51",Fixed Asset Interface Account,Programme
HM Land Registry,HM Land Registry,07/07/2021,Assets in the Course of Construction,DDaT Change Activities,Specialist Computer Centres Plc - SCC,6008510,"41,666.68",Assets in the Course of Construction,Programme
HM Land Registry,HM Land Registry,07/07/2021,Fixed Asset Interface Account,Balance Sheet,Specialist Computer Centres Plc - SCC,6008510,"1,023.50",Fixed Asset Interface Account,Programme
HM Land Registry,HM Land Registry,07/07/2021,Fixed Asset Interface Account,Balance Sheet,Specialist Computer Centres Plc - SCC,6008510,"55,050.76",Fixed Asset Interface Account,Programme
HM Land Registry,HM Land Registry,07/07/2021,Fixed Asset Interface Account,Balance Sheet,Specialist Computer Centres Plc - SCC,6008510,"11,010.16",Fixed Asset Interface Account,Programme
HM Land Registry,HM Land Registry,07/07/2021,Computer Equipment Maintenance,DDaT Operations,Specialist Computer Centres Plc - SCC,6008510,"14,053.60",Computer Equipment Maintenance,Programme
HM Land Registry,HM Land Registry,19/07/2021,Software as a Service (Cloud),DDaT Operations,Specialist Computer Centres Plc - SCC,6008605,"163,252.28",Software as a Service (Cloud),Programme
HM Land Registry,HM Land Registry,05/07/2021,LLC Transition Payments to Local Authorities,Transformation Change Activities,Spelthorne Borough Council,6008483,"60,000.00",LLC Transition Payments to Local Authorities,Programme
HM Land Registry,HM Land Registry,05/07/2021,LLC Transition Payments to Local Authorities,Transformation Change Activities,Spelthorne Borough Council,6008483,"12,000.00",LLC Transition Payments to Local Authorities,Programme
HM Land Registry,HM Land Registry,13/07/2021,LLC Transition Payments to Local Authorities,Transformation Change Activities,Stockton on Tees Borough Council,6008555,"90,000.00",LLC Transition Payments to Local Authorities,Programme
HM Land Registry,HM Land Registry,13/07/2021,LLC Transition Payments to Local Authorities,Transformation Change Activities,Stockton on Tees Borough Council,6008555,"18,000.00",LLC Transition Payments to Local Authorities,Programme
HM Land Registry,HM Land Registry,05/07/2021,LLC Transition Payments to Local Authorities,Transformation Change Activities,Stratford-on-Avon District Council,6008484,"75,000.00",LLC Transition Payments to Local Authorities,Programme
HM Land Registry,HM Land Registry,05/07/2021,LLC Transition Payments to Local Authorities,Transformation Change Activities,Stratford-on-Avon District Council,6008484,"15,000.00",LLC Transition Payments to Local Authorities,Programme
HM Land Registry,HM Land Registry,29/07/2021,Rates Payable,Facilities & Property Asset Management,Telford & Wrekin Council,6008712,"27,904.00",Rates Payable,Programme
HM Land Registry,HM Land Registry,29/07/2021,Rates Payable,Facilities & Property Asset Management,Telford & Wrekin Council,6008712,"1,766.00",Rates Payable,Programme
HM Land Registry,HM Land Registry,08/07/2021,Consultancy IT Implement,Operations Change Activities,Tisski Ltd,6008522,"314,550.00",Consultancy IT Implement,Programme
HM Land Registry,HM Land Registry,08/07/2021,Consultancy IT Implement,Operations Change Activities,Tisski Ltd,6008522,"62,910.00",Consultancy IT Implement,Programme
HM Land Registry,HM Land Registry,12/07/2021,LLC Transition Payments to Local Authorities,Transformation Change Activities,Warwick District Council,6008545,"75,000.00",LLC Transition Payments to Local Authorities,Programme
HM Land Registry,HM Land Registry,12/07/2021,LLC Transition Payments to Local Authorities,Transformation Change Activities,Warwick District Council,6008545,"15,000.00",LLC Transition Payments to Local Authorities,Programme
HM Land Registry,HM Land Registry,05/07/2021,LLC Transition Payments to Local Authorities,Transformation Change Activities,Watford Borough Council,6008486,"60,000.00",LLC Transition Payments to Local Authorities,Programme
HM Land Registry,HM Land Registry,05/07/2021,LLC Transition Payments to Local Authorities,Transformation Change Activities,Watford Borough Council,6008486,"12,000.00",LLC Transition Payments to Local Authorities,Programme
HM Land Registry,HM Land Registry,13/07/2021,LLC Transition Payments to Local Authorities,Transformation Change Activities,Welwyn Hatfield Borough Council,6008556,"53,650.00",LLC Transition Payments to Local Authorities,Programme
HM Land Registry,HM Land Registry,13/07/2021,LLC Transition Payments to Local Authorities,Transformation Change Activities,Welwyn Hatfield Borough Council,6008556,"10,730.00",LLC Transition Payments to Local Authorities,Programme
HM Land Registry,HM Land Registry,26/07/2021,Payment Card Costs,Finance,Worldpay Ltd,64652,"26,069.03",Payment Card Costs,Programme
HM Land Registry,HM Land Registry,22/07/2021,Scanning Contract,Central Operations,Xerox (UK) Ltd,6008661,"34,208.67",Scanning Contract,Programme
HM Land Registry,HM Land Registry,26/07/2021,Scanning Contract,Document Scanning,Xerox (UK) Ltd,6008668,"104,017.34",Scanning Contract,Programme
HM Land Registry,HM Land Registry,26/07/2021,Scanning Contract,Document Scanning,Xerox (UK) Ltd,6008668,"11,200.00",Scanning Contract,Programme
HM Land Registry,HM Land Registry,26/07/2021,Assets in the Course of Construction,DDaT Change Activities,XMA Limited,6008669,"22,066.80",Assets in the Course of Construction,Programme
HM Land Registry,HM Land Registry,26/07/2021,Assets in the Course of Construction,DDaT Change Activities,XMA Limited,6008669,882.24,Assets in the Course of Construction,Programme
HM Land Registry,HM Land Registry,26/07/2021,Assets in the Course of Construction,DDaT Change Activities,XMA Limited,6008669,"1,470.40",Assets in the Course of Construction,Programme
HM Land Registry,HM Land Registry,26/07/2021,Assets in the Course of Construction,DDaT Change Activities,XMA Limited,6008669,"4,883.89",Assets in the Course of Construction,Programme
HM Land Registry,HM Land Registry,26/07/2021,Computer Equipment Non HP Licences,DDaT Operations,XMA Limited,6008669,"12,217.89",Computer Equipment Non HP Licences,Programme
HM Land Registry,HM Land Registry,26/07/2021,Computer Equipment Non HP Licences,DDaT Operations,XMA Limited,6008669,"2,443.58",Computer Equipment Non HP Licences,Programme
